Cogmind - Beta 17 @@@ ROGUE MODE // 2026.07.01 @ 01:46:19 Player: Scuttle Result: Escaped! Performance ------------- Evolutions (9) 4500 Regions Visited (31) 6200 Robots Destroyed (540) 2700 Value Destroyed (26777) 26777 Prototype IDs (104) 2080 Alien Tech Used (0) 0 Bonus (43301) 43301 TOTAL SCORE: 85558 Bonus ------- Triggered High Security 2000 High Alert Combat Kills 8482 Follower Combat Kills 7005 Prayed to X0-1V1 5000 Major X0-1V1 Interference 11850 Entered Garrisons 800 Used RIF Installer 2500 Network Hubs Disabled 400 Aligned with FarCom 300 Built Enhanced Grunts 300 A7 Reached Mainframe 300 Met R17 at Cetus 500 Met R17 at Research 2000 Scanned by Researcher 500 Win 3000 Friendly Fire -1636 Cogmind --------- Core Integrity 204/1250 Matter 240/300 Energy 1386/1400 System Corruption 25% Temperature Cool (0) Movement Core (50) Location To Epsilon Eridani Parts ------- > --- POWER (2) -------- (None) > --- PROPULSION (5) --- High-density Centrium Wheel High-density Centrium Wheel > --- UTILITY (13) ----- Enhanced Optical Array > --- WEAPON (5) ------- (None) > --- INVENTORY (5) ---- High-density Centrium Wheel High-density Centrium Wheel Improved Remote Datajack Peak State ------------ > --- POWER ------------ Quantum Reactor Light Quantum Reactor > --- PROPULSION ------- Enhanced Biometal Leg Centrium Leg Centrium Leg Heavy Shield Leg > --- UTILITY ---------- Experimental Cooling System Huge Storage Unit Quantum Shading Machine Enhanced Optical Array Experimental Core Analyzer Precision Energy Filter Layered Heavy Armor Plating Experimental EM Shield Relay Coupler [Sentry] Relay Coupler [Heavy] Relay Coupler [Behemoth] X0-1V1's Piety Tracker > --- WEAPON ----------- PD Laser Multirail Multirail > --- INVENTORY -------- Quantum Reactor Quantum Reactor Advanced Heavy Siege Treads Enhanced Biometal Leg Enhanced Biometal Leg Advanced Heat Sink Improved Weapon Cycler Advanced Transmission Jammer Advanced Focal Shield Relay Coupler [NC] Relay Coupler [Grunt] Relay Coupler [Hunter] PD Laser Enhanced Nova Cannon Heavy Linear Accelerator Enhanced Hardcell Cannon Enhanced Hardcell Cannon Advanced Micro-nuke Launcher Improved Remote Datajack [Rating: 217] Favorites ----------- Power F-cell Engine Engine F-cell Engine Power Core Enhanced Fission Core Reactor Quantum Reactor Propulsion Centrium Leg Treads Medium Treads Leg Centrium Leg Wheel Armored Huge Wheel Hover Unit Linear Gravjet Flight Unit Biomechanical Wings Utility X0-1V1's Piety Tracker Device X0-1V1's Piety Tracker Storage Huge Storage Unit Processor Experimental Core Analyzer Hackware Relay Coupler [Behemoth] Protection Improved Powered Armor Weapon Dispersion Rifle Energy Gun Dispersion Rifle Energy Cannon Beam Cannon Ballistic Gun Precision Assault Rifle Ballistic Cannon Flak Cannon Launcher Mini Grenade Launcher Special Weapon Remote Datajack Impact Weapon Makeshift Hammer Slashing Weapon Phasing Sabre Piercing Weapon Enhanced Force Lance Special Melee Weapon Improved Datajack Build | -11 -10 -10 -10 -9 -8 -8 -8 -7 -7 -7 -6 -6 -6 -5 -5 -5 -5 -5 -4 -4 -4 -4 -3 -3 -3 -2 -2 -2 -1 -1 -1 ------- Run | Yrd Mat Min Exi Min Mat Gar Mat Fac Gar Fac Fac Low Low Fac Ext Cet Arc Hub Fac Upp Upp War Pro Res Arm Res Gar Res Acc Gar Acc Slots Evolved 18 | . . . . . 4 . . 2 . . 2 . . 2 . . . . 2 . . . . 2 . 2 . . 2 . . Power . | . . . . . . . . . . . . . . . . . . . . . . . . . . . . . . . . Propulsion 4 | . . . . . 1 . . 2 . . . . . . . . . . 1 . . . . . . . . . . . . Utility 11 | . . . . . 2 . . . . . 2 . . 2 . . . . 1 . . . . 1 . 1 . . 2 . . Weapon 3 | . . . . . 1 . . . . . . . . . . . . . . . . . . 1 . 1 . . . . . Parts Attached 370 | 6 10 1 2 2 12 24 11 23 15 19 25 . . 17 9 10 . 19 12 2 6 . 1 31 30 10 22 12 1 18 20 Power 41 | 1 1 . . . 1 2 1 3 . 4 1 . . 1 1 3 . 4 1 . . . 1 2 4 2 3 2 . 2 1 Engine 11 | 1 1 . . . . . . 2 . 3 1 . . . 1 . . 1 . . . . . . . . 1 . . . . Core 9 | . . . . . 1 2 1 1 . 1 . . . 1 . . . 1 . . . . . . . . . . . . 1 Reactor 21 | . . . . . . . . . . . . . . . . 3 . 2 1 . . . 1 2 4 2 2 2 . 2 . Propulsion 88 | 2 2 . . . 3 2 1 6 4 7 10 . . 2 2 1 . 4 5 . 2 . . 10 9 . 3 5 . 1 7 Treads 28 | 1 2 . . . 3 1 1 2 3 2 3 . . . . 1 . 2 . . . . . . . . 1 . . . 6 Leg 36 | . . . . . . . . . . . 1 . . . . . . 2 5 . 2 . . 10 8 . 1 5 . 1 1 Wheel 22 | 1 . . . . . 1 . 3 1 5 6 . . 2 2 . . . . . . . . . . . 1 . . . . Hover 1 | . . . . . . . . . . . . . . . . . . . . . . . . . 1 . . . . . . Flight 1 | . . . . . . . . 1 . . . . . . . . . . . . . . . . . . . . . . . Utility 139 | . 4 . 2 1 3 9 7 6 7 2 9 . . 12 3 3 . 7 3 2 . . . 11 10 6 11 4 1 12 4 Device 78 | . 3 . 2 1 . 4 4 2 5 1 1 . . 7 1 2 . 5 3 1 . . . 5 7 6 7 1 1 6 3 Storage 6 | . 1 . . . 1 . 1 1 . . 2 . . . . . . . . . . . . . . . . . . . . Processor 13 | . . . . . . . . 2 . 1 . . . . . . . . . 1 . . . 5 . . . 2 . 2 . Hackware 13 | . . . . . . . . . . . 3 . . 1 2 . . 1 . . . . . . 1 . 1 1 . 2 1 Protection 29 | . . . . . 2 5 2 1 2 . 3 . . 4 . 1 . 1 . . . . . 1 2 . 3 . . 2 . Artifact . | . . . . . . . . . . . . . . . . . . . . . . . . . . . . . . . . Weapon 102 | 3 3 1 . 1 5 11 2 8 4 6 5 . . 2 3 3 . 4 3 . 4 . . 8 7 2 5 1 . 3 8 Energy Gun 50 | 3 1 . . . . 9 1 3 3 1 3 . . 1 3 3 . 1 1 . 4 . . 1 2 1 3 . . 1 5 Energy Cannon 13 | . 2 . . . 2 1 . . . . . . . . . . . 1 . . . . . 1 2 1 . 1 . . 2 Ballistic Gun 22 | . . . . . 1 . . 4 1 2 2 . . . . . . 2 . . . . . 6 2 . . . . 2 . Ballistic Cannon 2 | . . . . . . . 1 . . 1 . . . . . . . . . . . . . . . . . . . . . Launcher 9 | . . 1 . 1 2 1 . . . 1 . . . . . . . . . . . . . . 1 . 2 . . . . Special Weapon 4 | . . . . . . . . . . 1 . . . . . . . . 2 . . . . . . . . . . . 1 Impact Weapon . | . . . . . . . . . . . . . . . . . . . . . . . . . . . . . . . . Slashing Weapon . | . . . . . . . . . . . . . . . . . . . . . . . . . . . . . . . . Piercing Weapon . | . . . . . . . . . . . . . . . . . . . . . . . . . . . . . . . . Special Melee Weapon 2 | . . . . . . . . 1 . . . . . 1 . . . . . . . . . . . . . . . . . Unidentified Prototypes 57 | . 1 . . . 1 . . 10 . 3 1 . . 3 . 2 . 8 1 . . . . 7 5 . 5 1 1 6 2 Corrupted Parts 5 | . . . . . . 1 1 . . . . . . . . . . 2 . . . . . . . . . . . 1 . System Corruption 22 | . . . . . . 3 3 . . . . . . . . . . 6 . . . . . . . . . . . 10 . Parts Lost 46 | . . . . 1 . 2 1 2 1 . . . . 4 . . . 3 2 . . . 1 2 7 1 1 1 . . 17 Power 6 | . . . . . . . 1 . . . . . . . . . . 3 . . . . 1 . . . . . . . 1 Propulsion 7 | . . . . . . . . . . . . . . 1 . . . . . . . . . . 1 . . . . . 5 Utility 26 | . . . . 1 . 2 . 1 1 . . . . 3 . . . . 1 . . . . 2 4 1 1 1 . . 8 Weapon 7 | . . . . . . . . 1 . . . . . . . . . . 1 . . . . . 2 . . . . . 3 Highest Loss Streak 9 | . . . . 1 . 1 1 1 1 . . . . 3 . . . 1 1 . . . 1 2 5 1 1 1 . . 9 To Critical Strikes 1 | . . . . . . . . . . . . . . . . . . . . . . . . . . . . . . . 1 Average Backups 19 | 1 3 5 6 6 5 12 13 19 23 24 24 23 22 21 21 23 23 22 22 22 21 21 20 21 22 15 21 22 20 20 13 Power 1 | . 1 1 1 1 1 . . 1 2 1 1 1 2 2 2 2 2 1 1 2 2 2 1 2 1 . 1 1 2 2 1 Propulsion 1 | . 1 2 2 2 1 . 1 1 . . . . . . . . 1 1 1 1 1 1 1 1 2 1 2 2 3 2 2 Utility 8 | . . 1 1 . . 3 5 7 10 11 12 12 13 11 11 10 10 10 10 11 12 12 12 10 11 8 10 9 6 8 4 Weapon 6 | . . 1 2 2 2 7 6 7 9 9 8 6 5 5 5 8 8 7 7 6 5 5 5 7 6 5 6 7 8 6 4 Tool/Special . | . . . . . . . . . . . . . . . . . . . . . . . . . . . . . . . . Unused Backups 91 | . 1 . . . 3 11 1 5 6 5 3 3 . 3 4 2 . 1 1 4 1 . . 2 1 . 4 5 . 11 14 Power 13 | . . . . . 1 2 . 2 . . . . . . . 1 . . . . . . . 2 . . 1 1 . . 3 Propulsion 18 | . 1 . . . 2 . . 1 . 3 . . . . . . . . . 3 . . . . . . 2 2 . . 4 Utility 28 | . . . . . . 4 1 . 1 . 2 . . 2 2 1 . 1 . . . . . . 1 . 1 1 . 7 4 Weapon 28 | . . . . . . 5 . 2 5 . 1 3 . . 2 . . . 1 1 1 . . . . . . 1 . 3 3 Tool/Special 4 | . . . . . . . . . . 2 . . . 1 . . . . . . . . . . . . . . . 1 . Average Slot Usage (%) 89 | . 85 100 78 96 85 98 89 86 92 94 93 86 86 85 80 86 88 86 98 94 98 100 100 99 93 96 96 82 83 83 56 Engine 3 | . 14 14 14 14 . . . 6 6 7 7 6 6 5 4 . . . 4 5 5 5 5 . . . . . . . . Core 2 | . . . . . 8 9 9 . . . 5 6 6 5 4 . . 1 . . . . . . . . . . . . . Reactor 3 | . . . . . . . . . . . . . . . . 9 11 7 5 5 5 5 5 8 8 8 8 8 8 8 4 Treads 5 | . 14 14 14 14 19 25 4 4 7 8 3 6 6 5 4 5 5 6 . . . . . . . . . . . . 2 Leg 9 | . . . . . . . . . . . . . . . . . . . 25 26 29 31 31 27 27 25 25 22 20 17 9 Wheel 7 | . 14 14 14 14 3 . 9 15 18 18 18 13 13 9 9 5 5 3 . . . . . . . . . . . . . Device 16 | . 12 14 12 14 17 17 18 13 12 12 12 13 13 25 16 17 17 11 19 20 20 21 19 15 8 26 28 19 23 17 9 Storage 5 | . 2 14 14 14 9 9 9 7 7 7 6 6 6 5 4 5 5 5 5 5 5 5 5 4 4 4 4 4 4 4 2 Processor 3 | . . . . . . . . . . . . . . . . . . . . 5 5 5 5 8 9 8 6 6 8 10 8 Hackware 6 | . . . . . . . . . . . 6 6 6 4 6 11 11 16 15 15 15 15 15 14 14 6 4 6 8 11 8 Protection 5 | . . . . . 6 8 9 6 6 7 5 6 6 6 7 9 11 11 5 . . . . 3 3 . 1 4 4 3 2 Energy Gun 13 | . 10 . . . . 23 31 10 23 22 18 20 20 12 13 17 17 16 13 10 9 10 9 2 7 15 14 7 4 4 2 Energy Cannon 1 | . 17 28 7 24 16 2 . . . . . . . . . . . . . . . . . . 1 . . . 4 1 . Ballistic Gun 3 | . . . . . 2 1 . 18 5 6 4 . . . . . . . . . . . . 11 4 . . . . 4 4 Peak Build Rating 217 | 5 19 19 19 21 43 56 57 67 73 76 100 99 97 111 123 126 126 134 154 145 143 145 145 172 171 186 199 199 209 217 215 Average Rating 112 | 3 6 19 16 19 35 50 53 60 67 71 89 98 97 105 105 121 126 125 149 136 140 141 141 157 159 177 189 195 205 209 137 On Entrance 103 | . 5 19 19 18 20 42 54 54 61 73 76 99 97 97 98 104 126 126 134 142 136 141 145 144 171 115 182 199 194 206 215 Avg Prop Armor Cover (%) 12 | 16 12 13 18 13 11 7 7 5 7 10 5 9 9 9 7 11 12 11 3 . . . . . . . . . . . 43 Naked Turns . | . . . . . . . . . . . . . . . . . . . . . . . . . . . . . . . . Heaviest Build 182 | 9 32 32 32 32 47 52 105 127 127 133 140 136 136 142 157 144 144 145 143 132 133 136 136 153 159 171 180 174 178 182 174 Greatest Support 180 | 20 20 16 16 16 84 84 28 56 56 60 60 40 40 70 44 28 28 150 148 138 163 163 163 168 180 180 180 180 180 180 170 Greatest Overweight (x) 5 | . 1 1 1 1 2 1 3 4 4 3 5 3 3 5 5 5 5 5 1 . . . . 1 1 . 1 1 . 1 1 Average Overweight (x) 1 | . . 1 1 1 . . 1 1 2 2 2 3 3 3 3 4 5 3 . . . . . . . . . . . . . Largest Inventory Capacity 25 | 5 15 15 15 15 15 15 25 25 25 25 25 25 25 25 25 25 25 25 25 25 25 25 25 25 25 25 25 25 25 25 25 Average Capacity 22 | 5 6 15 15 15 15 15 16 25 25 25 25 25 25 25 25 25 25 25 25 25 25 25 25 25 25 25 25 25 25 25 16 Most Carried 25 | 3 5 5 9 8 7 15 21 24 25 25 25 25 23 25 25 25 25 25 25 25 25 23 23 25 25 22 25 25 24 25 25 Average Carried 20 | 1 3 5 6 6 5 12 15 20 23 24 24 24 23 23 23 24 25 24 23 24 23 23 22 24 23 16 22 24 23 24 15 Final Capacity 25 | 5 15 15 15 15 15 15 25 25 25 25 25 25 25 25 25 25 25 25 25 25 25 25 25 25 25 25 25 25 25 25 5 Final Carried 25 | 2 5 5 8 6 6 15 19 21 25 25 25 23 23 25 25 25 25 25 25 25 23 23 22 25 23 17 25 25 23 25 3 Class Distribution -------------------- 30% | Skirmisher 15% | Mutant 8% | Scavenger-Skirmisher 7% | Scavenger-Tank 6% | Botlord-Gunner 6% | Bothacker-Tank 5% | Commander-Tank 4% | Tank 4% | Scavenger-Mutant Dominant Class ---------------- Mutant | -10/Materials Mutant | -10/Mines Mutant | -10/Exiles Mutant | -9/Mines Mutant | -8/Materials Skirmisher | -8/Garrison Skirmisher | -8/Materials Skirmisher | -7/Factory Skirmisher | -7/Garrison Skirmisher | -7/Factory Skirmisher | -6/Factory Tank | -6/Lower Caves Tank | -6/Lower Caves Mutant | -5/Factory Mutant | -5/Extension Commander-Tank | -5/Cetus Commander-Tank | -5/Archives Commander-Tank | -5/Hub_04(d) Scavenger-Skirmisher | -4/Factory Scavenger-Mutant | -4/Upper Caves Scavenger-Mutant | -4/Upper Caves Scavenger-Mutant | -4/Warlord Scavenger-Mutant | -3/Proximity Caves Scavenger-Tank | -3/Research Skirmisher | -3/Armory Scavenger-Skirmisher | -2/Research Scavenger-Tank | -2/Garrison Bothacker-Tank | -2/Research Bothacker-Tank | -1/Access Botlord-Gunner | -1/Garrison Mutant | -1/Access Resources | -11 -10 -10 -10 -9 -8 -8 -8 -7 -7 -7 -6 -6 -6 -5 -5 -5 -5 -5 -4 -4 -4 -4 -3 -3 -3 -2 -2 -2 -1 -1 -1 ----------- Run | Yrd Mat Min Exi Min Mat Gar Mat Fac Gar Fac Fac Low Low Fac Ext Cet Arc Hub Fac Upp Upp War Pro Res Arm Res Gar Res Acc Gar Acc Matter Collected 18497 | 151 209 76 . 247 376 749 180 1311 1288 668 1671 209 97 741 1033 110 . 380 433 155 262 . 237 1668 1475 282 887 883 80 1579 1060 Remotely . | . . . . . . . . . . . . . . . . . . . . . . . . . . . . . . . . Salvage Created 32363 | . 702 90 . 249 612 1334 1218 1672 1372 1372 3175 128 . 1282 712 155 . 1377 732 244 410 . 85 2271 2097 162 3126 1389 704 3442 2251 Parts 1286 | . 36 9 . 10 41 44 45 63 53 65 107 7 . 46 29 10 . 66 21 4 25 . 1 91 88 5 90 45 29 154 102 Haulers Intercepted 38 | . 2 . . . . . 1 3 . 6 7 . . 2 . . . 3 2 . . . . 3 . . . 4 1 . 4 Recyclers Shooed 13 | . . . . . . . 1 1 . 2 3 . . . 1 . . . . . . . . 1 . . . 2 2 . . Parts Field Recycled . | . . . . . . . . . . . . . . . . . . . . . . . . . . . . . . . . Retrieved Matter . | . . . . . . . . . . . . . . . . . . . . . . . . . . . . . . . . Parts Self-Destructed 43 | . . . . . . . . . . . . 7 . . . . . . . 7 24 . 5 . . . . . . . . Prevented 3 | . . . . . . . . . . . . . . . . . . . . 1 . . 2 . . . . . . . . Parts Restored . | . . . . . . . . . . . . . . . . . . . . . . . . . . . . . . . . Kills | -11 -10 -10 -10 -9 -8 -8 -8 -7 -7 -7 -6 -6 -6 -5 -5 -5 -5 -5 -4 -4 -4 -4 -3 -3 -3 -2 -2 -2 -1 -1 -1 ------- Run | Yrd Mat Min Exi Min Mat Gar Mat Fac Gar Fac Fac Low Low Fac Ext Cet Arc Hub Fac Upp Upp War Pro Res Arm Res Gar Res Acc Gar Acc Combat Hostiles Destroyed 404 | . 14 3 . 5 19 24 20 18 23 13 25 1 . 28 11 2 . 10 10 4 6 . 2 18 30 2 24 13 5 51 23 Melee 3 | . . . . . . . . . . . . . . . . . . . 1 . . . . . 1 . . . . . 1 Guns 288 | . 5 . . . . 11 18 17 23 12 23 1 . 12 10 2 . 9 7 4 6 . 2 18 21 2 22 13 3 26 21 Cannons 41 | . 8 . . 3 7 3 . . . . . . . . . . . 1 . . . . . . 5 . 1 . 2 11 . AOE 53 | . 1 3 . 2 11 7 . . . . . . . 13 . . . . 2 . . . . . . . . . . 14 . Classes Destroyed 27 | . 7 . . 1 3 3 1 1 . . 1 1 . . . . . 1 1 . . . 1 3 . . 1 1 . 1 . Worker 27 | . 1 . . . 1 . 1 . . 7 8 . . 2 . . . 1 . . . . . 2 . . . . . . 4 Builder 14 | . 1 . . . 3 . 1 1 . . 2 . . . 1 . . . 1 . . . . . . . . . . . 4 Tunneler 1 | . . . . . . . . . . . 1 . . . . . . . . . . . . . . . . . . . . Hauler 38 | . 2 . . . . . 1 3 . 6 7 . . 2 . . . 3 2 . . . . 3 . . . 4 1 . 4 Recycler 24 | . 1 . . 1 1 . . 6 . 4 4 . . . 1 . . . . . . . . 4 . . . 1 1 . . Minesweeper 1 | . . . . . . . . . . . . 1 . . . . . . . . . . . . . . . . . . . Mechanic 2 | . . . . . . . . . . . . . . . . . . . . . . . . 1 . . . . . . 1 Operator 3 | . . . . . . . . 2 . . . . . . 1 . . . . . . . . . . . . . . . . Drone 4 | . . . . . . . . . . . . . . . . . . . . . . . 1 . . . . . . 3 . Watcher 15 | . 2 . . . . . 1 . . 2 4 . . . . . . . 1 . . . . . 2 . . 1 . . 2 Swarmer 98 | . 6 . . . 11 3 . . 4 7 1 . . 10 5 . . . 1 2 6 . . 6 6 . 4 5 . 19 2 Cutter 2 | . . . . . . . . . . . . . . . . . . 2 . . . . . . . . . . . . . Saboteur 3 | . . . . . . . . . . . . . . . . . . . 1 . . . . . 1 . . . . . 1 Grunt 135 | . 8 3 . 4 7 13 10 12 8 3 15 1 . 4 4 . . 4 . 2 . . 1 4 6 . 8 4 3 5 6 Brawler 14 | . . . . 1 . 1 2 . . . 1 . . . . . . . 2 . . . . . 1 . 1 1 . 2 2 Duelist 14 | . . . . . 1 1 . 1 1 . . . . . . . . . 1 . . . . . 6 . 1 . . . 2 Protector 2 | . . . . . . . 1 . . . . . . . . . . . . . . . . . 1 . . . . . . Sentry 46 | . . . . . 1 1 5 2 6 3 3 . . 5 2 . . 2 . . . . . 1 1 1 3 . 2 8 . Demolisher 3 | . . . . . . 1 . . . . . . . . . . . . 1 . . . . . 1 . . . . . . Specialist 6 | . . . . . . . . . . . . . . . . . . . . . . . . . . . 2 . . 3 1 Hunter 29 | . . . . . 1 2 2 1 4 . 1 . . 3 . . . 1 . . . . . 5 3 . 4 . . . 2 Programmer 43 | . . . . . . 2 . 2 1 . 4 . . 4 . . . 1 4 . . . . . 5 1 1 3 . 9 6 Q-Series 2 | . . . . . . . . . . . . . . . . . . . . . . . . . . . . . . 2 . Behemoth 1 | . . . . . . . . . . . . . . . . . . . . . . . . . . . . 1 . . . Cetus Guard 2 | . . . . . . . . . . . . . . . . 2 . . . . . . . . . . . . . . . Enhanced Grunt 2 | . . . . . . . . . . . . . . . . . . 2 . . . . . . . . . . . . . Lightning 2 | . . . . . . . . . . . . . . . . . . 2 . . . . . . . . . . . . . Striker 2 | . . . . . . . . . . . . . . . . . . . . . . . . 1 . . . . . . 1 Executioner 1 | . . . . . . . . . . . . . . . . . . . . . . . . 1 . . . . . . . Scrapper 2 | . . . . . . 2 . . . . . . . . . . . . . . . . . . . . . . . . . Decomposer 3 | . . . . . . . . . . . . 3 . . . . . . . . . . . . . . . . . . . Thug 3 | . . . . . . . . . . . . . . 2 . . . . . . 1 . . . . . . . . . . Savage 1 | . . . . . . . . . . . . . . . . . . . . . 1 . . . . . . . . . . Commander 1 | . . . . . . . . . . . . . . . . . . . . . 1 . . . . . . . . . . Best Kill Streak 16 | . 6 3 . 3 16 4 5 8 6 7 6 1 . 8 7 1 . 2 5 3 6 . 1 6 7 1 5 3 4 11 11 Combat Bots Only 11 | . 5 3 . 3 11 4 5 3 6 3 3 1 . 8 7 1 . 2 4 3 6 . 1 6 6 1 5 3 3 11 5 Max Kills in Single Turn 4 | . 2 2 . 1 4 3 1 2 2 2 3 1 . 4 2 1 . 2 2 1 2 . 1 2 1 1 2 1 1 3 2 Gunslinging 1 | . . . . . . . . . 1 1 . . . 1 . . . . . . 1 . . 1 . . 1 . . . 1 Exploded 4 | . 1 2 . 1 3 3 . . . . . . . 4 . . . . 1 . . . . . . . . . . 3 . Melee 1 | . . . . . . . . . . . . . . . . . . . 1 . . . . . 1 . . . . . 1 Uniques/NPCs Destroyed . | . . . . . . . . . . . . . . . . . . . . . . . . . . . . . . . . Combat | -11 -10 -10 -10 -9 -8 -8 -8 -7 -7 -7 -6 -6 -6 -5 -5 -5 -5 -5 -4 -4 -4 -4 -3 -3 -3 -2 -2 -2 -1 -1 -1 -------- Run | Yrd Mat Min Exi Min Mat Gar Mat Fac Gar Fac Fac Low Low Fac Ext Cet Arc Hub Fac Upp Upp War Pro Res Arm Res Gar Res Acc Gar Acc Hostile Shots Fired 2645 | . 37 2 . 11 73 94 122 119 178 66 150 1 . 92 54 10 6 42 59 19 12 . 20 103 309 9 119 41 22 169 706 Missed 999 | . 9 2 . 3 26 19 53 45 65 32 68 1 . 26 12 6 1 8 18 6 3 . 4 37 120 3 45 22 9 83 273 Deflected 7 | . . . . . . . . . . . . . . . . . . . . . . . . . . . . . . . 7 Hits 1646 | . 28 . . 8 47 75 69 74 113 34 82 . . 66 42 4 5 34 41 13 9 . 16 66 189 6 74 19 13 86 433 Melee 58 | . . . . . 1 3 1 4 3 . . . . . . . . 7 . . . . . . 14 . . 1 . . 24 Projectile 1588 | . 28 . . 8 46 72 68 70 110 34 82 . . 66 42 4 5 27 41 13 9 . 16 66 175 6 74 18 13 86 409 AOE 28 | . . . . . 1 2 . . . . . . . . . . . . 3 . . . . . 8 . . . . 7 7 Critical Strikes 74 | . 1 . . . 1 2 4 4 1 1 . . . 1 1 1 1 2 3 . . . 2 2 9 1 . 3 . 4 30 Actively Blocked 1 | . . . . . . . . . . . . . . . . . . 1 . . . . . . . . . . . . . Part Disruptions 7 | . . . . . . 1 . . . 1 . . . . . . . 1 . . . . . . 2 . . 1 . . 1 Damage Taken 26439 | . 286 . . 136 544 1281 979 876 1139 547 1127 . . 1154 676 80 144 1697 1001 203 120 . 277 1162 3369 45 592 309 152 831 7712 Core 3735 | . 43 . . 85 138 117 88 135 107 19 50 . . 94 61 29 . 201 83 39 . . . 38 372 8 51 15 . 41 1921 Absorbed by Shields 5788 | . . . . . . . . . 12 . . . . 388 189 78 . . 142 75 46 . 102 120 958 31 625 321 163 794 1744 Redirected to Shielding 112 | . . . . . . . . . . . . . . . . . . 68 44 . . . . . . . . . . . . Ignored by Resistances 1906 | . . . . . . . . . . . . . . . . . . . 202 . . . . 248 225 70 446 91 16 279 329 Regen/Repaired (Parts) 598 | . 28 . . . . . 90 . . . . . . . . . . . 111 . . . . 117 252 . . . . . . Core Remaining (%) 60 | 100 . . . 7 . . 60 . . 32 . . 90 . . . . 68 . . . . 84 . 56 . . 93 . . 16 Volleys Fired 1286 | . 45 2 . 14 34 81 55 60 63 49 98 5 . 48 29 6 5 42 52 18 18 . 15 51 94 6 111 50 14 139 82 Largest 5 | . 2 1 . 2 2 3 4 4 4 4 4 3 . 3 5 3 3 3 3 2 2 . 2 3 3 4 4 1 1 2 2 Hottest 419 | . 120 30 . 120 120 183 238 238 279 282 283 200 . 200 419 243 243 252 250 162 162 . 169 250 275 308 308 120 120 120 240 Shots Fired 3341 | . 90 2 . 25 60 197 175 240 229 170 301 15 . 90 63 18 15 119 113 31 28 . 27 147 256 19 387 84 24 241 175 Gun 2882 | . 50 . . . . 162 171 240 229 167 286 15 . 83 53 18 15 113 93 26 20 . 24 144 229 18 374 65 10 140 137 Cannon 320 | . 40 . . 22 51 27 2 . . 2 6 . . . . . . 3 2 3 6 . 3 2 21 1 3 15 14 74 23 Launcher 54 | . . 2 . 3 9 8 2 . . 1 1 . . 5 . . . . 6 . . . . . . . 2 . . 15 . Special 85 | . . . . . . . . . . . 8 . . 2 10 . . 3 12 2 2 . . 1 6 . 8 4 . 12 15 Kinetic 656 | . . . . . . 7 . 175 41 41 53 . . . . . . . . . . . . 129 67 . . . . 61 82 Thermal 2401 | . 70 . . 22 51 110 155 30 188 128 239 15 . 83 53 18 15 116 95 29 26 . 27 17 183 19 377 80 24 153 78 Explosive 54 | . . 2 . 3 9 8 2 . . 1 1 . . 5 . . . . 6 . . . . . . . 2 . . 15 . Electromagnetic 145 | . 20 . . . . 72 18 35 . . . . . . . . . . . . . . . . . . . . . . . Robot Hit Streak 36 | . 11 9 . 3 7 22 36 33 23 15 16 13 . 15 14 13 8 19 14 7 10 . 10 16 11 11 29 18 11 25 17 Robot Miss Streak 9 | . 3 . . 5 6 5 1 2 3 7 3 . . 3 2 2 1 6 4 3 1 . 3 4 4 1 4 9 5 6 7 Penetration Max 2 | . . . . . . . . . . . . . . . . . . . . . . . . 1 . . . . . 1 2 Secondary Targets 56 | . 1 . . . . 4 5 2 6 3 2 . . 1 3 . . 4 1 . 1 . 1 5 9 . 5 . . . 3 Max Gunslinging Chain 2 | . 1 . . . . 1 1 1 2 1 1 . . 1 1 . . 1 1 . 1 . 1 1 1 . 1 . . . 1 Autonomous 179 | . . . . . . . . . . . . . . . . . . . . . . . . . . . 8 37 10 72 52 Shots Hit Robots 2164 | . 58 1 . 9 27 113 137 180 114 94 201 6 . 65 43 16 12 74 73 19 11 . 16 105 166 14 227 67 18 161 137 Core Hits 1276 | . 28 6 . 9 32 63 53 62 46 57 111 5 . 44 21 4 4 55 43 8 9 . 5 60 78 5 105 45 15 163 140 Critical Kills 68 | . . . . . . . . . 2 . 3 1 . 3 2 2 . 7 4 2 3 . . 23 8 . 4 . . 2 2 Critical Parts Destroyed 87 | . . . . . . . . . 3 3 1 . . 9 1 1 1 7 8 2 2 . 1 25 11 . 9 . . 1 2 Critical Strikes 221 | . 1 . . . . 5 18 2 6 3 19 2 . 12 4 5 3 14 12 4 5 . 2 52 24 2 19 . . 3 4 Burn 50 | . . . . . . 5 18 2 1 . 15 1 . . 1 . . . . . . . 1 1 1 1 3 . . . . Meltdown 2 | . . . . . . . . . . . . . . . . . . . . . . . . . . . . . . 1 1 Destroy 167 | . . . . . . . . . 5 3 4 1 . 12 3 5 3 14 12 4 5 . 1 51 23 1 15 . . 2 3 Corrupt 1 | . 1 . . . . . . . . . . . . . . . . . . . . . . . . . . . . . . Sunder 1 | . . . . . . . . . . . . . . . . . . . . . . . . . . . 1 . . . . Melee Attacks 2 | . . . . . . . . 1 . . . . . 1 . . . . . . . . . . . . . . . . . Impact . | . . . . . . . . . . . . . . . . . . . . . . . . . . . . . . . . Slashing . | . . . . . . . . . . . . . . . . . . . . . . . . . . . . . . . . Piercing . | . . . . . . . . . . . . . . . . . . . . . . . . . . . . . . . . Sneak Attacks 2 | . . . . . . . . 1 . . . . . 1 . . . . . . . . . . . . . . . . . Combat Hostiles . | . . . . . . . . . . . . . . . . . . . . . . . . . . . . . . . . Follow-up Attacks . | . . . . . . . . . . . . . . . . . . . . . . . . . . . . . . . . Damage Inflicted 63351 | . 1031 132 . 266 1737 2518 2248 3319 2782 2594 5038 145 . 3498 934 403 312 2568 2401 409 286 . 410 1381 3730 382 6053 2918 938 9301 5617 Guns 49672 | . 426 . . . . 1522 2248 3236 2782 2463 4671 145 . 2025 934 403 312 1725 1730 409 286 . 410 1215 3206 382 5970 2311 463 4942 5456 Cannons 5112 | . 477 . . 156 664 228 . . . . . . . . . . . 80 . . . . . . 524 . 83 522 475 1753 150 Explosions 8305 | . 128 132 . 110 1073 768 . 83 . 131 367 . . 1473 . . . 763 671 . . . . . . . . . . 2606 . Melee . | . . . . . . . . . . . . . . . . . . . . . . . . . . . . . . . . Ramming 262 | . . . . . . . . . . . . . . . . . . . . . . . . 166 . . . 85 . . 11 Kinetic 10251 | . . . . . . 27 . 2483 242 386 698 . . . . . . . . . . . . 917 418 . . . . 2221 2859 Thermal 43701 | . 824 . . 156 664 1276 2103 508 2540 2077 3973 145 . 2025 934 403 312 1972 1730 409 286 . 410 298 3312 382 5970 2833 938 4474 2747 Explosive 6779 | . . 132 . 110 1073 714 . . . . . . . 1473 . . . . 671 . . . . . . . . . . 2606 . Electromagnetic 2275 | . 207 . . . . 501 145 328 . 131 367 . . . . . . 596 . . . . . . . . . . . . . Impact . | . . . . . . . . . . . . . . . . . . . . . . . . . . . . . . . . Slashing . | . . . . . . . . . . . . . . . . . . . . . . . . . . . . . . . . Piercing . | . . . . . . . . . . . . . . . . . . . . . . . . . . . . . . . . Entropic 83 | . . . . . . . . . . . . . . . . . . . . . . . . . . . 83 . . . . Highest Corruption 25 | . . 2 2 10 18 21 3 1 4 13 1 . . 3 3 . . 10 2 2 2 . . 2 6 . 12 2 . 14 25 Average Corruption 5 | . . 2 2 7 17 12 2 1 4 5 1 . . 2 3 . . 5 2 2 2 . . 2 2 . 6 2 . 5 12 Corruption Purged . | . . . . . . . . . . . . . . . . . . . . . . . . . . . . . . . . Corruption Blocked . | . . . . . . . . . . . . . . . . . . . . . . . . . . . . . . . . Effects 360 | . . 2 4 17 19 45 1 1 22 40 10 . . 6 17 . . 14 3 7 7 . . 15 18 . 36 14 . 24 38 Message Errors 95 | . . . 1 5 4 8 1 . 3 7 4 . . 2 7 . . 3 2 4 3 . . 4 8 . 11 5 . 7 6 Matter Fused 65 | . . 1 . 3 3 8 . . 4 10 3 . . 2 4 . . 1 . . . . . 4 2 . 7 1 . 3 9 Heat Flow Errors 46 | . . . . 2 6 7 . . 5 4 1 . . . 3 . . 3 . . . . . . 4 . 3 2 . 3 3 Energy Discharges 39 | . . . 1 2 . 8 . . 3 6 . . . . . . . 3 . 1 2 . . 1 1 . 4 3 . 3 1 Parts Rejected 3 | . . . . . 1 1 . . . . . . . . . . . . . . . . . . . . . . . . 1 Parts Fused 3 | . . . . . 1 . . . . . . . . . . . . 1 . . . . . . . . . . . 1 . Data Loss (minor) 41 | . . . 1 4 1 2 . . 2 4 2 . . 2 . . . 1 . 1 2 . . 4 2 . 5 2 . 2 4 Data Loss (major) 16 | . . 1 . 1 1 1 . . . 4 . . . . 2 . . 1 . 1 . . . 1 1 . . 1 . 1 . Misfires 14 | . . . . . 1 5 . . 1 2 . . . . . . . . 1 . . . . . . . 2 . . 1 1 Alerts 8 | . . . 1 . 1 . . 1 1 . . . . . . . . 1 . . . . . 1 . . . . . . 2 Misdirections 11 | . . . . . . . . . . . . . . . . . . . . . . . . . . . 2 . . . 9 Weapon Failures 19 | . . . . . . 5 . . 3 3 . . . . 1 . . . . . . . . . . . 2 . . 3 2 Overload Shots 3 | . . . . . . . . . . . . . . 3 . . . . . . . . . . . . . . . . . Effects 1 | . . . . . . . . . . . . . . 1 . . . . . . . . . . . . . . . . . Short Circuit 1 | . . . . . . . . . . . . . . 1 . . . . . . . . . . . . . . . . . Overflow Damage 512 | . . . . . 31 . . . . . . . . 124 . . . . 32 . . . . 62 . . . . 25 226 12 Projectiles 76 | . . . . . 19 . . . . . . . . . . . . . . . . . . . . . . . 25 20 12 Explosions 374 | . . . . . 12 . . . . . . . . 124 . . . . 32 . . . . . . . . . . 206 . Melee 62 | . . . . . . . . . . . . . . . . . . . . . . . . 62 . . . . . . . Knockbacks 3 | . . . . . . . . . . . . . . . . . . . . . . . . 2 . . . 1 . . . Impact 3 | . . . . . . . . . . . . . . . . . . . . . . . . 2 . . . 1 . . . Kinetic . | . . . . . . . . . . . . . . . . . . . . . . . . . . . . . . . . Secondary . | . . . . . . . . . . . . . . . . . . . . . . . . . . . . . . . . Self-Inflicted Damage 752 | . . . . 28 36 58 . . . 50 . . . . . . . 396 68 . . . . . . . 55 . . 58 3 Shots 16 | . . . . 1 1 2 . . . 2 . . . . . . . 4 3 . . . . . . . 2 . . 1 . Rammed 2 | . . . . . . . . . . . . . . . . . . . . . . . . . . . . . . . 2 Targets Rammed 10 | . . . . . . . . . . . . . . . . . . . . . . . . 5 . . . 3 . . 2 Kicked 8 | . . . . . . . . . . . . . . . . . . . . . . . . 5 . . . 3 . . . Crushed . | . . . . . . . . . . . . . . . . . . . . . . . . . . . . . . . . Highest Temperature 458 | . 291 . . 189 384 331 171 12 252 394 260 . . 168 213 . . 208 300 . . . 28 188 458 354 371 120 343 224 103 Average Temperature 78 | . 73 . . 68 96 105 62 7 57 82 36 . . 58 96 . . 47 77 . . . 10 74 105 147 94 59 146 76 23 Received Heat Transfer 3823 | . 111 . . 63 54 423 261 264 270 162 240 . . 123 88 4 9 93 75 36 6 . 74 87 229 4 24 26 36 41 1020 Effects 13 | . . . . . 2 1 . . . 1 . . . . . . . . 1 . . . . . 4 1 2 . 1 . . Shutdowns 6 | . . . . . 1 . . . . . . . . . . . . . . . . . . . 2 1 2 . . . . Energy Bleed 5 | . . . . . 1 1 . . . . . . . . . . . . 1 . . . . . 1 . . . 1 . . Interference 1 | . . . . . . . . . . . . . . . . . . . . . . . . . 1 . . . . . . Damage (minor) 1 | . . . . . . . . . . 1 . . . . . . . . . . . . . . . . . . . . . Siege Activations 4 | . . . . . . . . . . . . . . 2 . . . 2 . . . . . . . . . . . . . Total Turns 25 | . . . . . . . . . . . . . . 8 . . . 17 . . . . . . . . . . . . . Longest Duration 10 | . . . . . . . . . . . . . . 5 . . . 10 . . . . . . . . . . . . . Martial Activations . | . . . . . . . . . . . . . . . . . . . . . . . . . . . . . . . . Shielding Activations 3 | . . . . . . . . . . . . . . . . . . . . . . . . . . . . . . 2 1 Total Turns 31 | . . . . . . . . . . . . . . . . . . . . . . . . . . . . . . 15 16 Longest Duration 16 | . . . . . . . . . . . . . . . . . . . . . . . . . . . . . . 8 16 Robots Disrupted 5 | . . . . . . 1 1 2 . . 1 . . . . . . . . . . . . . . . . . . . . Combat Hostiles 2 | . . . . . . . 1 1 . . . . . . . . . . . . . . . . . . . . . . . Robots Corrupted 1 | . . . . . . . . . . . . . . . . . . . . . . . . 1 . . . . . . . Combat Hostiles . | . . . . . . . . . . . . . . . . . . . . . . . . . . . . . . . . Parts Fried 4 | . 1 . . . . . . . . . 1 . . . . . . 1 . . . . . 1 . . . . . . . Impact Corruptions 2 | . . . . . . . . . . . . . . . . . . . . . . . . 2 . . . . . . . Robots Melted 24 | . . . . . 1 5 2 1 . 1 3 . . 3 1 . . . . . . . . . 3 . 2 . . 1 1 Combat Hostiles 19 | . . . . . 1 3 2 1 . 1 2 . . 3 1 . . . . . . . . . 3 . 1 . . . 1 Parts Melted 234 | . 2 . . . 2 16 26 1 19 11 30 . . 9 4 . . 6 6 2 . . 1 5 29 6 38 6 1 4 10 Heat Transferred 64931 | . 1624 . . 333 1036 2905 5613 1038 4198 3549 9065 387 . 2359 1406 629 426 2630 2331 629 444 . 666 518 4357 592 8614 2681 807 3872 2222 Parts Sabotaged 20 | . . . . . . . . . 8 . . . . . . . . . . . . . . . 3 . . . . . 9 Parts Stolen . | . . . . . . . . . . . . . . . . . . . . . . . . . . . . . . . . Parts Stripped . | . . . . . . . . . . . . . . . . . . . . . . . . . . . . . . . . Power Chain Reactions 6 | . 2 . . . . 1 . 1 . . . . . . . . . 2 . . . . . . . . . . . . . Alert | -11 -10 -10 -10 -9 -8 -8 -8 -7 -7 -7 -6 -6 -6 -5 -5 -5 -5 -5 -4 -4 -4 -4 -3 -3 -3 -2 -2 -2 -1 -1 -1 ------- Run | Yrd Mat Min Exi Min Mat Gar Mat Fac Gar Fac Fac Low Low Fac Ext Cet Arc Hub Fac Upp Upp War Pro Res Arm Res Gar Res Acc Gar Acc Maximum Alert Level 5 | . . . . . 2 4 4 3 4 3 2 . . 2 1 2 1 5 5 . . . . 2 2 1 3 5 4 5 5 Low Security (%) 20 | 100 100 100 . 100 83 . . . . . 15 . . 53 59 7 32 17 . . . . . . 37 62 8 . . . . Level 1 21 | . . . . . 4 9 . 7 . . 66 . . 7 40 86 67 4 . . . . . 95 29 37 25 . . . . Level 2 21 | . . . . . 11 35 11 91 17 46 17 . . 38 . 6 . 13 . . . . . 4 33 . 36 46 . . . Level 3 15 | . . . . . . 43 78 1 62 53 . . . . . . . 13 14 . . . . . . . 30 15 43 8 . Level 4 6 | . . . . . . 11 9 . 20 . . . . . . . . 36 54 . . . . . . . . 26 56 5 . Level 5 9 | . . . . . . . . . . . . . . . . . . 2 7 . . . . . . . . 3 . 86 21 High Security 5 | . . . . . . . . . . . . . . . . . . 13 23 . . . . . . . . 7 . . 78 Max Security . | . . . . . . . . . . . . . . . . . . . . . . . . . . . . . . . . Peak Influence 3945 | . 159 120 . 82 472 1303 1156 710 1166 780 558 . . 456 345 410 276 1965 1785 . . . . 417 483 234 934 1706 1120 3945 3592 Initial 2366 | . . 39 . . . 291 635 514 452 611 365 . . 6 203 176 144 85 1100 . . . . 331 181 234 61 525 1100 888 2366 Average 864 | . 86 68 . 20 116 799 906 487 888 676 332 . . 228 154 278 224 1033 1392 . . . . 336 286 170 549 977 1096 2917 3073 Influence Increases 22275 | . 459 81 . 147 672 1252 965 738 724 731 988 19 . 911 600 414 180 2404 1171 115 212 . 87 865 875 64 1023 1605 120 3057 1796 Destroy 0b10 Robot/C 9353 | . 280 60 . 100 420 560 580 440 460 330 495 15 . 420 390 180 60 675 390 90 150 . 60 270 495 30 405 585 75 798 540 Destroy 0b10 Robot/NC 811 | . 35 . . 5 25 10 30 60 . 96 108 4 . 16 36 8 4 72 36 . . . 8 40 12 . 44 52 8 30 72 Destroy Leader 1636 | . 58 . . 20 110 30 154 114 30 90 148 . . 84 46 8 . 158 74 8 16 . 8 62 78 16 32 110 18 64 100 Allied During Kill 3015 | . . . . . 16 23 52 33 . 38 27 . . . 75 196 64 824 303 17 22 . 11 2 46 . 29 424 7 492 314 Trap Triggered on 0b10 40 | . . . . . . . . 30 10 . . . . . . . . . . . . . . . . . . . . . . Successful Hack 347 | . 23 . . . 4 14 15 . 14 28 23 . . 22 15 6 . . 12 . . . . 18 78 18 11 14 . 32 . Select Force Hacks 83 | . 60 . . . . . . . . . . . . 23 . . . . . . . . . . . . . . . . . Disable Machine 981 | . . 15 . . 30 . 30 30 . 132 168 . . 144 . . 36 96 72 . . . . 12 60 . 60 24 . 36 36 Anti-Garrison Action 1498 | . . . . . . 500 . . 50 . . . . . . . . 113 . . . . . . . . 189 . . 556 90 Destroy Structure 3096 | . 3 6 . 22 52 100 29 16 130 17 19 . . 178 14 16 16 466 236 . . . . 18 46 . 205 384 12 1025 86 Advance Influence 300 | . . . . . . . . . . . . . . . . . . . . . . . . 300 . . . . . . . Partial Spotted 36 | . . . . . . . . . . . . . . . . . . . 12 . . . . 12 12 . . . . . . Lose Combat Pursuer 984 | . . . . . 15 15 75 15 30 . . . . 24 24 . . . 36 . 24 . . 36 48 . 48 12 . 24 558 Miscellaneous 95 | . . . . . . . . . . . . . . . . . . . . . . . . 95 . . . . . . . Influence Decreases 18898 | . 357 163 20 147 224 397 1136 1224 204 1151 1178 524 41 504 700 371 296 683 1489 907 436 769 40 566 773 430 171 833 793 222 2149 Entered New Map 9539 | . . 63 20 . . 157 668 618 194 555 381 206 11 4 214 141 216 159 1003 661 190 769 . 16 165 214 21 409 683 222 1579 Time Decay 7489 | . 357 100 . 147 184 . 398 526 . 556 717 318 30 460 426 190 60 374 326 246 246 . 30 510 518 206 . 334 90 . 140 Lost Part 450 | . . . . . . 20 10 20 10 . . . . 40 . . . 30 20 . . . 10 20 70 10 10 10 . . 170 Lost Ally 1420 | . . . . . 40 220 60 60 . 40 80 . . . 60 40 20 120 140 . . . . 20 20 . 140 80 20 . 260 Squads Dispatched 171 | . 3 . . . 7 . 7 10 . 13 20 . . 8 3 1 . 16 15 . . . . 5 5 1 . 8 3 . 46 Investigation 18 | . 2 . . . . . 3 1 . 3 1 . . 2 . 1 . . . . . . . 3 1 . . 1 . . . Extermination 25 | . . . . . . . . 2 . 3 7 . . 3 . . . 1 2 . . . . . 3 1 . 2 . . 1 Reinforcement 39 | . 1 . . . 2 . 1 6 . 4 8 . . . 3 . . 6 1 . . . . 2 1 . . . 1 . 3 Assault 67 | . . . . . 1 . 3 . . 2 2 . . . . . . 6 10 . . . . . . . . 5 . . 38 Garrison 22 | . . . . . 4 . . 1 . 1 2 . . 3 . . . 3 2 . . . . . . . . . 2 . 4 Intercept . | . . . . . . . . . . . . . . . . . . . . . . . . . . . . . . . . Searches Triggered . | . . . . . . . . . . . . . . . . . . . . . . . . . . . . . . . . Construction Impeded 5 | . . . . . 1 . . . . 1 1 . . . . . . 1 . . . . . . . . . . . . 1 Haulers Reinforced 16 | . . . . . . . . 2 . 2 3 . . . . . . 3 1 . . . . 2 . . . . 1 . 2 Active Scanning Responses . | . . . . . . . . . . . . . . . . . . . . . . . . . . . . . . . . Cargo Convoy Interrupts 1 | . . . . . . . . 1 . . . . . . . . . . . . . . . . . . . . . . . Stealth | -11 -10 -10 -10 -9 -8 -8 -8 -7 -7 -7 -6 -6 -6 -5 -5 -5 -5 -5 -4 -4 -4 -4 -3 -3 -3 -2 -2 -2 -1 -1 -1 --------- Run | Yrd Mat Min Exi Min Mat Gar Mat Fac Gar Fac Fac Low Low Fac Ext Cet Arc Hub Fac Upp Upp War Pro Res Arm Res Gar Res Acc Gar Acc Distress Signals 48 | . . . . . 2 . 2 . . 5 1 . . . 2 2 . 4 2 . . . . 8 6 . . 3 2 . 9 Communications Jammed 2 | . . . . . . . . . . . . . . . . . . . 1 . . . . . . . . . 1 . . Distress Signals 2 | . . . . . . . . . . . . . . . . . . . 1 . . . . . . . . . 1 . . Times Spotted 896 | . 20 3 . 5 25 27 42 28 26 41 46 1 . 33 35 12 4 32 42 6 11 . 6 37 68 3 34 34 7 64 204 Peak Tracking Total 31 | . 5 3 . 3 8 5 7 5 6 9 3 1 . 8 8 5 2 6 9 5 5 . 4 6 13 1 5 7 4 9 31 Tactical Retreats 41 | . . . . . 1 1 4 1 1 . . . . 2 2 . . . 2 . 2 . . 3 2 . 2 1 . 1 16 Traps | -11 -10 -10 -10 -9 -8 -8 -8 -7 -7 -7 -6 -6 -6 -5 -5 -5 -5 -5 -4 -4 -4 -4 -3 -3 -3 -2 -2 -2 -1 -1 -1 ------- Run | Yrd Mat Min Exi Min Mat Gar Mat Fac Gar Fac Fac Low Low Fac Ext Cet Arc Hub Fac Upp Upp War Pro Res Arm Res Gar Res Acc Gar Acc Traps Triggered 30 | . . . . . . . 2 1 1 4 6 . . 3 1 . . . . . . . . 1 . . 3 . . 5 3 Indirectly . | . . . . . . . . . . . . . . . . . . . . . . . . . . . . . . . . Trap Hack Attempts 84 | . . . . . . . . 43 2 . . . . . 39 . . . . . . . . . . . . . . . . Triggered 1 | . . . . . . . . . . . . . . . 1 . . . . . . . . . . . . . . . . Disarmed 2 | . . . . . . . . 1 . . . . . . 1 . . . . . . . . . . . . . . . . Reprogrammed 11 | . . . . . . . . 5 1 . . . . . 5 . . . . . . . . . . . . . . . . Reused 4 | . . . . . . . . 3 1 . . . . . . . . . . . . . . . . . . . . . . Traps Extracted 10 | . . . . . . . . 5 . . . . . . 5 . . . . . . . . . . . . . . . . Installed 5 | . . . . . . . . 5 . . . . . . . . . . . . . . . . . . . . . . . Triggered 4 | . . . . . . . . 3 1 . . . . . . . . . . . . . . . . . . . . . . Most Traps Carried 6 | . . . . . . . . 5 . . 1 1 1 1 6 6 6 6 6 6 6 6 6 6 6 6 6 . . . . Machines | -11 -10 -10 -10 -9 -8 -8 -8 -7 -7 -7 -6 -6 -6 -5 -5 -5 -5 -5 -4 -4 -4 -4 -3 -3 -3 -2 -2 -2 -1 -1 -1 ---------- Run | Yrd Mat Min Exi Min Mat Gar Mat Fac Gar Fac Fac Low Low Fac Ext Cet Arc Hub Fac Upp Upp War Pro Res Arm Res Gar Res Acc Gar Acc Machines Disabled 101 | . . 1 . . 2 4 2 2 2 11 14 . . 12 . . 3 9 6 1 . . . 1 5 . 8 2 . 11 5 Max in Single Turn 7 | . . 1 . . 1 1 1 1 2 6 5 . . 7 . . . 2 1 1 . . . 1 1 . 1 . . 2 1 Garrison Access 6 | . . . . . . . 1 . . . 2 . . . . . . 1 . . . . . 1 . . . . . . 1 Garrison Relay 12 | . . . . . . 4 . . . . . . . . . . . . . . . . . . . . 3 . . 5 . Phase Generator 3 | . . . . . . 1 . . 1 . . . . . . . . . . . . . . . . . . . . 1 . Network Hub 2 | . . . . . . . . . . . . . . . . . . 2 . . . . . . . . . . . . . Energy Cycler 2 | . . . . . . . . . . . . . . . . . . . . . . . . . 1 . . . . . 1 Machines Repaired . | . . . . . . . . . . . . . . . . . . . . . . . . . . . . . . . . Machines Dismantled . | . . . . . . . . . . . . . . . . . . . . . . . . . . . . . . . . Machines Sabotaged . | . . . . . . . . . . . . . . . . . . . . . . . . . . . . . . . . Overloaded Fab Kills . | . . . . . . . . . . . . . . . . . . . . . . . . . . . . . . . . Hacking | -11 -10 -10 -10 -9 -8 -8 -8 -7 -7 -7 -6 -6 -6 -5 -5 -5 -5 -5 -4 -4 -4 -4 -3 -3 -3 -2 -2 -2 -1 -1 -1 --------- Run | Yrd Mat Min Exi Min Mat Gar Mat Fac Gar Fac Fac Low Low Fac Ext Cet Arc Hub Fac Upp Upp War Pro Res Arm Res Gar Res Acc Gar Acc Machines Accessed 92 | . 10 . 2 . 1 1 8 5 1 10 11 . . 9 8 1 . 1 3 . 2 . . 5 5 2 1 2 1 3 . Terminals 51 | . 7 . . . . 1 5 3 1 6 4 . . 4 8 1 . 1 1 . . . . . 3 . 1 2 . 3 . Fabricators 8 | . . . . . . . . . . 2 3 . . 1 . . . . . . . . . 1 1 . . . . . . Repair Stations 10 | . 1 . . . . . 1 . . . 1 . . 2 . . . . 2 . . . . 2 1 . . . . . . Recycling Units 3 | . 2 . . . . . . . . . 1 . . . . . . . . . . . . . . . . . . . . Scanalyzers 8 | . . . . . . . 1 1 . 2 1 . . 1 . . . . . . . . . 1 . 1 . . . . . Garrison Access 8 | . . . . . 1 . 1 1 . . 1 . . 1 . . . . . . . . . 1 . 1 . . 1 . . Total Hacks 194 | . 20 . 2 . 2 1 20 10 1 19 22 . . 14 15 3 . 2 12 . 6 . . 10 21 2 1 5 1 5 . Successful 90 | . 12 . 2 . 1 1 14 4 1 5 7 . . 5 4 1 . . 5 . 6 . . 6 8 2 1 1 1 3 . Failed 104 | . 8 . . . 1 . 6 6 . 14 15 . . 9 11 2 . 2 7 . . . . 4 13 . . 4 . 2 . Catastrophic 20 | . . . . . . . . . . 4 2 . . 3 2 1 . . 2 . . . . 2 3 . . 1 . . . Database Lockouts . | . . . . . . . . . . . . . . . . . . . . . . . . . . . . . . . . Manual 56 | . 16 . 1 . . . 5 . . 10 5 . . 5 5 1 . . . . . . . 2 6 . . . . . . Terminals 100 | . 16 . . . . 1 13 7 1 10 6 . . 6 15 3 . 2 1 . . . . . 8 . 1 5 . 5 . Fabricators 21 | . . . . . . . . . . 7 5 . . 2 . . . . . . . . . 1 6 . . . . . . Repair Stations 32 | . 2 . . . . . 4 . . . 2 . . 2 . . . . 11 . . . . 4 7 . . . . . . Recycling Units 6 | . 2 . . . . . . . . . 4 . . . . . . . . . . . . . . . . . . . . Scanalyzers 14 | . . . . . . . 2 2 . 2 2 . . 2 . . . . . . . . . 3 . 1 . . . . . Garrison Access 13 | . . . . . 2 . 1 1 . . 3 . . 2 . . . . . . . . . 2 . 1 . . 1 . . Terminal Hacks 38 | . 4 . 2 . . 1 6 1 1 2 . . . 2 4 1 . . . . 6 . . . 3 . 1 1 . 3 . Record 6 | . . . 1 . . . . . . . . . . . . . . . . . 5 . . . . . . . . . . Robot Analysis 3 | . 1 . . . . . 1 . . . . . . . . . . . . . . . . . . . . 1 . . . Prototype ID Bank 7 | . 3 . . . . . 1 1 . . . . . . . . . . . . . . . . 2 . . . . . . Open Door 7 | . . . . . . . . . . . . . . 1 4 1 . . . . 1 . . . . . . . . . . Branch Access Points 2 | . . . . . . . . . . 1 . . . 1 . . . . . . . . . . . . . . . . . Emergency Access Points 1 | . . . . . . . . . . . . . . . . . . . . . . . . . . . . . . 1 . Locate Traps 3 | . . . . . . . 2 . . 1 . . . . . . . . . . . . . . . . . . . . . Hauler Manifests 1 | . . . . . . . 1 . . . . . . . . . . . . . . . . . . . . . . . . Registered Components 2 | . . . . . . . 1 . . . . . . . . . . . . . . . . . 1 . . . . . . Garrison Registry 3 | . . . . . . 1 . . 1 . . . . . . . . . . . . . . . . . 1 . . . . Patrol Navigation 1 | . . . . . . . . . . . . . . . . . . . . . . . . . . . . . . 1 . Security Stations 1 | . . . . . . . . . . . . . . . . . . . . . . . . . . . . . . 1 . Proto ID Catalog 1 | . . . 1 . . . . . . . . . . . . . . . . . . . . . . . . . . . . Fabricator Hacks 3 | . . . . . . . . . . 1 1 . . . . . . . . . . . . . 1 . . . . . . Network Status 1 | . . . . . . . . . . . 1 . . . . . . . . . . . . . . . . . . . . Build 2 | . . . . . . . . . . 1 . . . . . . . . . . . . . . 1 . . . . . . Repair Station Hacks 13 | . 2 . . . . . 1 . . . 1 . . . . . . . 5 . . . . 1 3 . . . . . . Scan Component 9 | . 1 . . . . . 1 . . . 1 . . . . . . . 3 . . . . 1 2 . . . . . . Repair 4 | . 1 . . . . . . . . . . . . . . . . . 2 . . . . . 1 . . . . . . Recycling Unit Hacks 1 | . . . . . . . . . . . 1 . . . . . . . . . . . . . . . . . . . . Retrieve Components 1 | . . . . . . . . . . . 1 . . . . . . . . . . . . . . . . . . . . Scanalyzer 7 | . . . . . . . 2 2 . 1 . . . . . . . . . . . . . 1 . 1 . . . . . Retrieve Study 7 | . . . . . . . 2 2 . 1 . . . . . . . . . . . . . 1 . 1 . . . . . Garrison Access Hacks 10 | . . . . . 1 . 1 1 . . 2 . . 1 . . . . . . . . . 2 . 1 . . 1 . . Unlock Access 5 | . . . . . 1 . 1 1 . . . . . . . . . . . . . . . . . 1 . . 1 . . Seal Access 2 | . . . . . . . . . . . 1 . . . . . . . . . . . . 1 . . . . . . . Coupler Status 3 | . . . . . . . . . . . 1 . . 1 . . . . . . . . . 1 . . . . . . . Unauthorized Hacks 18 | . 6 . . . . . 4 . . 1 2 . . 2 . . . . . . . . . 2 1 . . . . . . Terminals 8 | . 4 . . . . . 3 . . . . . . 1 . . . . . . . . . . . . . . . . . Assimilate 1 | . . . . . . . . . . . . . . 1 . . . . . . . . . . . . . . . . . Botnet 7 | . 4 . . . . . 3 . . . . . . . . . . . . . . . . . . . . . . . . Fabricators 2 | . . . . . . . . . . 1 1 . . . . . . . . . . . . . . . . . . . . Haulers 2 | . . . . . . . . . . 1 1 . . . . . . . . . . . . . . . . . . . . Repair Stations 4 | . . . . . . . 1 . . . . . . . . . . . . . . . . 2 1 . . . . . . Patch 4 | . . . . . . . 1 . . . . . . . . . . . . . . . . 2 1 . . . . . . Recycling Units 3 | . 2 . . . . . . . . . 1 . . . . . . . . . . . . . . . . . . . . Mask 1 | . . . . . . . . . . . 1 . . . . . . . . . . . . . . . . . . . . Tunnel 2 | . 2 . . . . . . . . . . . . . . . . . . . . . . . . . . . . . . Scanalyzers . | . . . . . . . . . . . . . . . . . . . . . . . . . . . . . . . . Garrison Access 1 | . . . . . . . . . . . . . . 1 . . . . . . . . . . . . . . . . . Eject 1 | . . . . . . . . . . . . . . 1 . . . . . . . . . . . . . . . . . Data Cores Recovered 2 | . . . . . . . . 2 . . . . . . . . . . . . . . . . . . . . . . . Used . | . . . . . . . . . . . . . . . . . . . . . . . . . . . . . . . . Hacking Detections 65 | . 5 . . . 1 . 6 4 1 9 10 . . 8 5 1 . 1 3 . . . . 2 5 1 . 1 1 1 . Full Trace Events 3 | . . . . . . . . . . 3 . . . . . . . . . . . . . . . . . . . . . Feedback Events 2 | . . . . . . . . . . 2 . . . . . . . . . . . . . . . . . . . . . Corruption 2 | . . . . . . . . . . 2 . . . . . . . . . . . . . . . . . . . . . Feedback Blocked . | . . . . . . . . . . . . . . . . . . . . . . . . . . . . . . . . Robot Schematics Acquired . | . . . . . . . . . . . . . . . . . . . . . . . . . . . . . . . . Robots Built . | . . . . . . . . . . . . . . . . . . . . . . . . . . . . . . . . Authchips . | . . . . . . . . . . . . . . . . . . . . . . . . . . . . . . . . Time 116 | . . . . . . . . . . 116 . . . . . . . . . . . . . . . . . . . . . Total Robot Build Rating . | . . . . . . . . . . . . . . . . . . . . . . . . . . . . . . . . Part Schematics Acquired . | . . . . . . . . . . . . . . . . . . . . . . . . . . . . . . . . Parts Built 2 | . . . . . . . . . . . . . . . . . . . . . . . . . 2 . . . . . . Authchips . | . . . . . . . . . . . . . . . . . . . . . . . . . . . . . . . . Time 139 | . . . . . . . . . . . . . . . . . . . . . . . . . 139 . . . . . . Total Part Build Rating 18 | . . . . . . . . . . . . . . . . . . . . . . . . . 18 . . . . . . Part Studies Acquired 6 | . . . . . . . 1 2 . 1 . . . . . . . . . . . . . 1 . 1 . . . . . Parts Repaired 4 | . 1 . . . . . . . . . . . . . . . . . 2 . . . . . 1 . . . . . . Time 213 | . 26 . . . . . . . . . . . . . . . . . 133 . . . . . 54 . . . . . . Parts Recycled . | . . . . . . . . . . . . . . . . . . . . . . . . . . . . . . . . Recycled Matter . | . . . . . . . . . . . . . . . . . . . . . . . . . . . . . . . . Retrieved Matter . | . . . . . . . . . . . . . . . . . . . . . . . . . . . . . . . . Retrieved Components 10 | . . . . . . . . . . . 10 . . . . . . . . . . . . . . . . . . . . Parts Scanalyzed . | . . . . . . . . . . . . . . . . . . . . . . . . . . . . . . . . Part Schematics Acquired . | . . . . . . . . . . . . . . . . . . . . . . . . . . . . . . . . Parts Damaged . | . . . . . . . . . . . . . . . . . . . . . . . . . . . . . . . . Bothacking | -11 -10 -10 -10 -9 -8 -8 -8 -7 -7 -7 -6 -6 -6 -5 -5 -5 -5 -5 -4 -4 -4 -4 -3 -3 -3 -2 -2 -2 -1 -1 -1 ------------ Run | Yrd Mat Min Exi Min Mat Gar Mat Fac Gar Fac Fac Low Low Fac Ext Cet Arc Hub Fac Upp Upp War Pro Res Arm Res Gar Res Acc Gar Acc Used RIF Installer 5 | . . . . . . 1 . . 2 . . . . . . . . . . . . . . . . . 1 . . 1 . Hotswap 1 | . . . . . . . . . . . . . . . . . . . . . . . . . . . 1 . . . . Command Fork 1 | . . . . . . 1 . . . . . . . . . . . . . . . . . . . . . . . . . Threat Obfuscator 2 | . . . . . . . . . 1 . . . . . . . . . . . . . . . . . . . . 1 . Program Shield 1 | . . . . . . . . . 1 . . . . . . . . . . . . . . . . . . . . . . Robots Hacked 48 | . . . . . . . . 1 . . 6 . . 2 7 . . 2 7 1 1 . . 1 4 . 2 3 . 5 6 Non-combat 3 | . . . . . . . . 1 . . . . . 1 . . . . 1 . . . . . . . . . . . . Combat 45 | . . . . . . . . . . . 6 . . 1 7 . . 2 6 1 1 . . 1 4 . 2 3 . 5 6 Robot Hacks Applied 54 | . . . . . . . . 1 . . 7 . . 2 7 . . 3 8 2 1 . . 1 5 . 2 3 . 5 7 find_chute 2 | . . . . . . . . 1 . . . . . 1 . . . . . . . . . . . . . . . . . find_fabricator 1 | . . . . . . . . . . . . . . . . . . . 1 . . . . . . . . . . . . find_shortcuts 1 | . . . . . . . . . . . . . . . . . . . . . . . . . 1 . . . . . . find_garrison 1 | . . . . . . . . . . . 1 . . . . . . . . . . . . . . . . . . . . disrupt_area 3 | . . . . . . . . . . . 1 . . . . . . 1 . . . . . . . . . . . . 1 amplify_resonance 6 | . . . . . . . . . . . 1 . . 1 . . . . 1 1 . . . . . . . . . . 2 disable_weapons 2 | . . . . . . . . . . . 1 . . . . . . . . . . . . . 1 . . . . . . go_dormant 1 | . . . . . . . . . . . . . . . . . . . . . . . . . . . . . . . 1 overwrite_iff 1 | . . . . . . . . . . . . . . . . . . . . 1 . . . . . . . . . . . formatsys_high 36 | . . . . . . . . . . . 3 . . . 7 . . 2 6 . 1 . . 1 3 . 2 3 . 5 3 Relay Couplers Released 60 | . . . . . . 14 3 . . . 4 . . 4 . . . . . . . . . . . . 15 . . 20 . Ejected 4 | . . . . . . . . . . . . . . 4 . . . . . . . . . . . . . . . . . Machine Destruction 52 | . . . . . . 14 3 . . . 4 . . . . . . . . . . . . . . . 11 . . 20 . Programmers 4 | . . . . . . . . . . . . . . . . . . . . . . . . . . . 4 . . . . Attached 11 | . . . . . . . . . . . 3 . . . 2 . . 1 . . . . . . . . 1 1 . 2 1 Fabnet Peak Effective % . | . . . . . . . . . . . . . . . . . . . . . . . . . . . . . . . . Robots Rewired 22 | . . . . . . 8 . . . . . . . . 7 . . . . . . . . . . . 7 . . . . Allies Hacked . | . . . . . . . . . . . . . . . . . . . . . . . . . . . . . . . . Hacks Repelled . | . . . . . . . . . . . . . . . . . . . . . . . . . . . . . . . . Allies | -11 -10 -10 -10 -9 -8 -8 -8 -7 -7 -7 -6 -6 -6 -5 -5 -5 -5 -5 -4 -4 -4 -4 -3 -3 -3 -2 -2 -2 -1 -1 -1 -------- Run | Yrd Mat Min Exi Min Mat Gar Mat Fac Gar Fac Fac Low Low Fac Ext Cet Arc Hub Fac Upp Upp War Pro Res Arm Res Gar Res Acc Gar Acc Total Allies 111 | . . . . . 4 13 6 4 . 2 7 . . 1 20 5 . 7 6 1 3 . . 1 3 . 11 3 . 5 9 Largest Group 20 | . . . . . 4 6 5 4 . 2 5 . . 1 15 18 17 20 10 2 3 3 2 1 2 . 6 6 1 5 8 Highest-Rated Group 1296 | . . . . . 48 165 116 148 . 42 159 . . 26 697 1115 1078 1296 827 98 125 125 96 64 187 . 318 801 183 940 996 Highest-Rated Ally 219 | . . . . . 12 33 116 116 . 21 41 . . 26 159 159 159 142 142 49 49 49 49 64 142 . 148 183 183 219 219 Total Orders 20 | . . . . . . . . . . . . . . . 3 . . 2 2 . . . . . 1 . . . 1 9 2 STAY 10 | . . . . . . . . . . . . . . . 1 . . 1 1 . . . . . 1 . . . 1 4 1 FOLLOW 10 | . . . . . . . . . . . . . . . 2 . . 1 1 . . . . . . . . . . 5 1 Ally Attacks 1027 | . . . . . 24 39 48 15 . 45 34 . . . 53 63 37 188 83 7 8 . 11 10 28 . 26 131 2 63 112 Total Damage 38792 | . . . . . 198 734 899 367 . 826 1122 . . . 1694 2345 1266 6620 3271 294 215 . 305 358 1193 . 723 5551 . 3419 7392 Kills 252 | . . . . . 2 4 12 4 . 14 9 . . . 22 12 6 50 22 2 4 . 4 . 5 . 4 33 . 12 31 Allies Corrupted 6 | . . . . . . . 2 . . . . . . . . . . 2 1 . . . . . . . . . . . 1 Allies Melted . | . . . . . . . . . . . . . . . . . . . . . . . . . . . . . . . . X0-1V1 Amusement Gains 549 | . 10 . . 10 25 10 5 10 77 . 55 . . 10 . . . 99 32 . . . . 35 70 10 10 35 . 46 . Good Acts 251 | . . 1 . . 2 14 10 7 8 10 39 5 1 5 18 5 2 4 9 5 8 . . 8 10 2 8 4 2 25 39 Bad Acts 95 | . . 3 . 2 4 5 2 4 7 6 7 1 1 8 3 1 . . 1 1 1 . . 6 12 . 4 3 . 7 6 Intel | -11 -10 -10 -10 -9 -8 -8 -8 -7 -7 -7 -6 -6 -6 -5 -5 -5 -5 -5 -4 -4 -4 -4 -3 -3 -3 -2 -2 -2 -1 -1 -1 ------- Run | Yrd Mat Min Exi Min Mat Gar Mat Fac Gar Fac Fac Low Low Fac Ext Cet Arc Hub Fac Upp Upp War Pro Res Arm Res Gar Res Acc Gar Acc Active Infowar (turns) 8213 | . . . . . . . . 146 . . . . . . . . . . 731 538 476 92 286 225 550 330 38 620 182 2667 1332 Optics 4801 | . . . . . . . . . . . . . . . . . . . . . . . . . . . . 620 182 2667 1332 Terrain 2511 | . . . . . . . . . . . . . . . . . . . . 538 476 92 286 220 550 312 37 . . . . Seismic 1 | . . . . . . . . . . . . . . . . . . . . . . . . . . 1 . . . . . T.N.C. 146 | . . . . . . . . 146 . . . . . . . . . . . . . . . . . . . . . . . Jamming 1686 | . . . . . . . . . . . . . . . . . . . 731 . . . . 220 . 329 38 . 167 201 . Robot Analysis Total 3 | . 1 . . . . . 1 . . . . . . . . . . . . . . . . . . . . 1 . . . Derelict Logs Recovered 4 | . . . . 2 . . . . . . . 1 . . . . . . . . 1 . . . . . . . . . . Drone Launches . | . . . . . . . . . . . . . . . . . . . . . . . . . . . . . . . . Drone Recoveries . | . . . . . . . . . . . . . . . . . . . . . . . . . . . . . . . . Exploration | -11 -10 -10 -10 -9 -8 -8 -8 -7 -7 -7 -6 -6 -6 -5 -5 -5 -5 -5 -4 -4 -4 -4 -3 -3 -3 -2 -2 -2 -1 -1 -1 ------------- Run | Yrd Mat Min Exi Min Mat Gar Mat Fac Gar Fac Fac Low Low Fac Ext Cet Arc Hub Fac Upp Upp War Pro Res Arm Res Gar Res Acc Gar Acc Turns Passed 30675 | 80 882 205 253 616 444 2214 959 1477 969 1639 3331 702 64 1548 1592 395 125 998 953 539 523 94 345 1384 1420 425 1501 817 182 2667 1332 Spaces Moved 19768 | 67 661 173 215 493 206 1130 610 860 536 1081 2275 506 48 933 938 199 54 491 558 407 385 38 263 982 780 347 951 543 134 1565 1339 Core 840 | 4 . . . . . . . . . . . . . . . . . . . . . . . . . . . . . . 836 Treads 1259 | 5 2 . . . 116 1004 . . . . . . . 9 . . . 123 . . . . . . . . . . . . . Legs 7457 | . . . . . . . . . . . . . . . . . . 5 558 407 385 38 263 982 780 347 951 543 134 1565 499 Wheels 10212 | 58 659 173 215 493 90 126 610 860 536 1081 2275 506 48 924 938 199 54 363 . . . . . . . . . . . . 4 Hover . | . . . . . . . . . . . . . . . . . . . . . . . . . . . . . . . . Flight . | . . . . . . . . . . . . . . . . . . . . . . . . . . . . . . . . Fastest Speed 50 | 50 100 115 115 115 130 115 115 105 120 120 105 135 135 135 135 150 165 135 104 108 108 110 110 110 110 104 104 104 110 110 50 Average Speed 121 | 101 103 115 115 115 147 154 118 118 128 127 124 135 135 139 140 162 165 158 114 108 109 110 110 112 117 105 104 105 110 127 74 Slowest Speed 250 | 160 160 115 115 115 240 160 145 150 150 135 165 135 135 240 165 165 165 250 178 108 110 110 110 182 190 116 175 175 110 182 182 Overloaded Moves . | . . . . . . . . . . . . . . . . . . . . . . . . . . . . . . . . Propulsion Burnouts . | . . . . . . . . . . . . . . . . . . . . . . . . . . . . . . . . Robots Hopped . | . . . . . . . . . . . . . . . . . . . . . . . . . . . . . . . . Potential Cave-ins 2 | . . . . . . . . . . . 2 . . . . . . . . . . . . . . . . . . . . Cave-ins Triggered 1 | . . . . . . . . . . . . . . . . . . . 1 . . . . . . . . . . . . Exploration Rate (%) 47 | 4 97 41 60 80 17 85 46 15 79 39 56 56 15 24 97 71 70 49 15 62 50 9 49 33 36 12 88 16 6 98 41 Regions Visited 31 Branch Regions 14 Pre-discovered Areas 4 | . 2 . 1 1 . . . . . . . . . . . . . . . . . . . . . . . . . . . Known Exits Taken 17 | . . . . . 1 . 1 1 . 1 1 1 1 1 1 . . 1 1 1 1 . 1 . 1 1 . . 1 . . Unknown Exits Taken 10 | 1 1 1 1 1 . . . . . . . . . . . 1 1 . . . . 1 . 1 . . . 1 . . . Scrap Searched 11 | . . 1 . 1 . . . . . . . 2 1 . . . . . . 4 1 . 1 . . . . . . . . Spaces Dug 246 | . . . . . 6 24 1 . . 6 6 . . 1 . . . . 1 1 3 . 1 2 3 . 65 2 2 117 5 Terrain Destroyed 1237 | . 3 6 . 37 54 41 17 . 78 15 11 . . 97 . . . 320 63 2 6 . 3 9 3 . 68 9 3 377 15 Melee . | . . . . . . . . . . . . . . . . . . . . . . . . . . . . . . . . Projectile 114 | . . . . . 11 . 2 . . 10 7 . . 14 . . . 1 2 2 6 . 3 2 3 . 3 9 3 23 13 AOE 1109 | . 3 6 . 37 43 41 15 . 78 5 4 . . 83 . . . 319 61 . . . . . . . 65 . . 349 . Terrain Rammed . | . . . . . . . . . . . . . . . . . . . . . . . . . . . . . . . . Walls Destroyed . | . . . . . . . . . . . . . . . . . . . . . . . . . . . . . . . . Machines Disabled . | . . . . . . . . . . . . . . . . . . . . . . . . . . . . . . . . Actions | -11 -10 -10 -10 -9 -8 -8 -8 -7 -7 -7 -6 -6 -6 -5 -5 -5 -5 -5 -4 -4 -4 -4 -3 -3 -3 -2 -2 -2 -1 -1 -1 --------- Run | Yrd Mat Min Exi Min Mat Gar Mat Fac Gar Fac Fac Low Low Fac Ext Cet Arc Hub Fac Upp Upp War Pro Res Arm Res Gar Res Acc Gar Acc Total 24243 | 76 769 176 222 516 288 1438 722 1186 683 1225 2559 516 47 1114 1166 258 79 618 798 477 454 89 291 1145 1101 393 1295 735 158 2087 1562 Wait 1382 | . 40 . . 1 15 44 25 125 22 30 70 . . 72 75 28 21 26 140 29 28 51 7 12 95 9 61 71 5 247 33 Move 19737 | 66 660 172 214 492 205 1128 609 860 535 1080 2274 505 47 932 937 198 53 490 557 406 384 37 262 981 779 347 950 542 133 1564 1338 Hop . | . . . . . . . . . . . . . . . . . . . . . . . . . . . . . . . . Pick Up 205 | 2 4 . 1 1 6 21 7 17 10 6 14 2 . 8 10 4 . 9 4 9 . . . 7 13 2 14 9 . 16 9 Fast Attach 183 | 6 6 . 2 1 8 8 1 10 14 6 16 . . 7 2 4 . 7 5 . 1 . . 16 13 4 15 9 . 9 13 Attach 113 | . . . . 3 2 2 2 6 3 2 11 . . 6 7 1 . 7 7 1 2 . 1 4 12 9 4 1 2 2 16 Detach 118 | 1 3 . 4 1 4 4 . 12 2 3 8 . . 7 4 1 . 4 4 . . . . 10 15 2 10 1 . 4 14 Swap 503 | . 5 2 . 2 5 32 15 28 10 22 32 . . 24 11 6 . 22 23 7 16 1 6 35 52 11 36 26 4 45 25 Drop 336 | 1 6 . 1 1 9 29 8 19 15 19 28 4 . 9 9 10 . 11 6 7 5 . . 24 26 3 27 23 . 24 12 Fire 1286 | . 45 2 . 14 34 81 55 60 63 49 98 5 . 48 29 6 5 42 52 18 18 . 15 51 94 6 111 50 14 139 82 Melee 2 | . . . . . . . . 1 . . . . . 1 . . . . . . . . . . . . . . . . . Ram 2 | . . . . . . . . . . . . . . . . . . . . . . . . . 1 . . . . . 1 Kick 8 | . . . . . . . . . . . . . . . . . . . . . . . . 5 . . . 3 . . . Crush 1 | . . . . . . . . . . . . . . . . . . . . . . . . . . . . . . . 1 Escape Stasis 84 | . . . . . . . . . 7 8 8 . . . 8 . . . . . . . . . . . 10 . . 25 18 Rewire 194 | . . . . . . 89 . . . . . . . . 35 . . . . . . . . . 1 . 57 . . 12 . Trap 89 | . . . . . . . . 48 2 . . . . . 39 . . . . . . . . . . . . . . . . Miscellaneous . | . . . . . . . . . . . . . . . . . . . . . . . . . . . . . . . . Route ------- -11/Scrapyard -10/Materials (discovered 6 exits: [*Mat x3] / [*Min x2] / [*Sub]) -10/Mines (discovered 2 exits: [*Mat] / *Exi) -10/Exiles -9/Mines -8/Materials -8/Garrison (discovered 3 exits: *Mat x3) -8/Materials (discovered 2 exits: *Fac x2) -7/Factory (discovered 5 exits: Fac / *Sto x2 / Low / Gar) -7/Garrison (discovered 3 exits: *Fac x3) -7/Factory (discovered 5 exits: *Fac / Sto x2 / Low x2) -6/Factory (discovered 6 exits: *Fac x4 / *Low x2) -6/Lower Caves -6/Lower Caves (discovered 2 exits: *Fac / Zio) -5/Factory (discovered 6 exits: *Fac x2 / *Upp x2 / *Ext x2) -5/Extension (discovered 2 exits: *Fac / *Cet) -5/Cetus (discovered 3 exits: *Fac x2 / [*Arc]) -5/Archives -5/Hub_04(d) (discovered 2 exits: *Fac x2) -4/Factory (discovered 2 exits: *Upp x2) -4/Upper Caves -4/Upper Caves (discovered 2 exits: Res / *War) -4/Warlord -3/Proximity Caves -3/Research (discovered 4 exits: *Res x2 / *Arm / Tes) -3/Armory -2/Research -2/Garrison (discovered 3 exits: *Res x3) -2/Research -1/Access (discovered 2 exits: Sur / Gar) -1/Garrison (discovered 3 exits: *Acc x3) -1/Access (discovered 2 exits: *Sur / Com) To Epsilon Eridani History --------- Turn | Location | Event 27 | -11/Scrapyard | Discovered new exit (range 15) 81 | -11/Scrapyard | Entered Materials 195 | -10/Materials | Discovered new exit (range 10) 318 | -10/Materials | Build established: Mutant 465 | -10/Materials | Discovered new exit (range 12) 519 | -10/Materials | Discovered new exit (range 11) 568 | -10/Materials | Repaired Beam Cannon 587 | -10/Materials | Discovered new exit (range 16) 736 | -10/Materials | Discovered new exit (range 13) 767 | -10/Materials | Discovered new exit (range 14) 891 | -10/Materials | Made a sacrifice at D.C.S.S. Altar Unit 892 | -10/Materials | Core integrity fell below 50% 963 | -10/Materials | Entered Mines 972 | -10/Mines | X0-1V1 sent hostile G-34 Mercenary (x3) 978 | -10/Mines | Met a Derelict bent on vengeance 995 | -10/Mines | Deemed a non-threat by the Exiles lab entrance 996 | -10/Mines | Discovered new exit (range 5) 1015 | -10/Mines | Discovered new exit (range 11) 1168 | -10/Mines | Entered Exiles 1196 | -10/Exiles | Met 8R-AWN 1217 | -10/Exiles | Met EX-HEX 1249 | -10/Exiles | Met EX-BIN 1264 | -10/Exiles | Aligned with FarCom system 1265 | -10/Exiles | Given EX-Vault access code 1294 | -10/Exiles | Opened EX-Vault 1303 | -10/Exiles | Found Gui. Plasma Cannon 1309 | -10/Exiles | Found PSU Rigger 1336 | -10/Exiles | Warned to stay clear of 0b10 Research branches 1372 | -10/Exiles | Met EX-DEC 1376 | -10/Exiles | Learned location of Zion (-6) 1412 | -10/Exiles | Discovered new exit (range 10) 1421 | -10/Exiles | Left Exiles lab with Gui. Plasma Cannon 1421 | -10/Exiles | Entered Mines 1422 | -9/Mines | Learned location of Storage (-7) 1492 | -9/Mines | Core integrity fell below 20% 1555 | -9/Mines | Found a hidden stash of uninstalled traps 1582 | -9/Mines | System corruption reached 10% 1603 | -9/Mines | Received a Rocket Launcher from a helpful Derelict 1679 | -9/Mines | Learned Materials stockpile data 1700 | -9/Mines | X0-1V1 sent someone to clean up after you 2032 | -9/Mines | Discovered new exit (range 5) 2037 | -9/Mines | Entered Materials 2037 | -8/Materials | Evolved 4 slots: Propulsion x1, Utility x2, Weapon x1 2042 | -8/Materials | System corruption reached 10% 2080 | -8/Materials | X0-1V1 sent you to a vault 2102 | -8/Materials | Garrison activated, responded to threat 2180 | -8/Materials | Lost 3 allies 2265 | -8/Materials | Identified exit to Garrison 2429 | -8/Materials | Garrison activated, responded to threat 2437 | -8/Materials | First assault squad dispatched 2452 | -8/Materials | Destroyed 11 combat bots 2477 | -8/Materials | X0-1V1 sent hostile C-17 Slicer (x1) 2481 | -8/Materials | Entered Garrison 2560 | -8/Garrison | Discovered new exit (range 85) 2560 | -8/Garrison | Discovered new exit (range 63) 2560 | -8/Garrison | Discovered new exit (range 61) 2579 | -8/Garrison | X0-1V1 sent you into danger 2670 | -8/Garrison | Build established: Skirmisher 2692 | -8/Garrison | X0-1V1 sent you into danger 2693 | -8/Garrison | Triggered checkpoint 2699 | -8/Garrison | Triggered checkpoint 2947 | -8/Garrison | Garrison Relay disabled 3038 | -8/Garrison | Heat dissipation permanently improved by X0-1V1 (+30; -150 max core) 3072 | -8/Garrison | Installed Relay Interface Framework 3299 | -8/Garrison | Triggered checkpoint 3419 | -8/Garrison | X0-1V1 destroyed Phase Generator 3419 | -8/Garrison | Phase Generator disabled 3462 | -8/Garrison | X0-1V1 activates XOMVISION 3477 | -8/Garrison | Triggered checkpoint 3496 | -8/Garrison | Garrison Relay disabled 3557 | -8/Garrison | Expanded RIF knowledge: Command Fork 3739 | -8/Garrison | Garrison Relay disabled 3868 | -8/Garrison | Garrison Relay disabled 3943 | -8/Garrison | Triggered checkpoint 4057 | -8/Garrison | Triggered checkpoint 4112 | -8/Garrison | Lost 6 allies 4168 | -8/Garrison | Ranged accuracy permanently improved by X0-1V1 (+10%; -100 max core) 4206 | -8/Garrison | X0-1V1 sent allied Scrapper (x5) 4441 | -8/Garrison | Triggered checkpoint 4519 | -8/Garrison | Lost 3 allies 4695 | -8/Garrison | Entered Materials 4813 | -8/Materials | X0-1V1 sent allied G-47 Trooper (x5) 4981 | -8/Materials | Identified exit to Garrison 5074 | -8/Materials | X0-1V1 activates XOMVISION 5086 | -8/Materials | Lost 3 allies 5126 | -8/Materials | X0-1V1 mutated your Propulsion slot to Weapon slot 5153 | -8/Materials | Discovered new exit (range 4) 5250 | -8/Materials | Identified exit to Factory 5250 | -8/Materials | X0-1V1 revealed exit location to -7/Factory 5440 | -8/Materials | X0-1V1 sent you into danger 5454 | -8/Materials | X0-1V1 foreshadows a heat wave 5495 | -8/Materials | First assault squad dispatched 5554 | -8/Materials | X0-1V1 sent allied B-86 Titan (x1) 5581 | -8/Materials | Ambient heat levels rising (+10) 5654 | -8/Materials | Entered Factory 5654 | -7/Factory | Accompanied by 1 ally 5654 | -7/Factory | Evolved 2 slots: Propulsion x2 5655 | -7/Factory | Identified exit to Storage 5711 | -7/Factory | Identified exit to Lower Caves 5711 | -7/Factory | X0-1V1 revealed exit location to -7/Lower Caves 6075 | -7/Factory | Discovered exit to Storage (range 11) 6145 | -7/Factory | X0-1V1 sent you into danger 6524 | -7/Factory | Energy generation permanently improved by X0-1V1 (+10; -100 max core) 6737 | -7/Factory | X0-1V1 announced a LAN party 6873 | -7/Factory | Identified exit to Factory 6873 | -7/Factory | X0-1V1 revealed exit location to -6/Factory 6928 | -7/Factory | Cargo convoy interrupted 7097 | -7/Factory | X0-1V1 sent allied P-60 Hacker (x4) 7098 | -7/Factory | Garrison activated, responded to threat 7126 | -7/Factory | Identified exit to Garrison 7131 | -7/Factory | Entered Garrison 7131 | -7/Garrison | Accompanied by 1 ally 7158 | -7/Garrison | Discovered new exit (range 43) 7158 | -7/Garrison | Discovered new exit (range 81) 7158 | -7/Garrison | Discovered new exit (range 63) 7201 | -7/Garrison | Triggered checkpoint 7204 | -7/Garrison | Triggered checkpoint 7391 | -7/Garrison | Found Imp. Powered Armor 7398 | -7/Garrison | Found Imp. Powered Armor 7401 | -7/Garrison | Found Imp. Powered Armor 7416 | -7/Garrison | Found Imp. Powered Armor 7577 | -7/Garrison | Triggered checkpoint 7610 | -7/Garrison | Core integrity fell below 50% 7726 | -7/Garrison | Phase Generator disabled 7726 | -7/Garrison | Spotted B-75 Beast 7763 | -7/Garrison | Triggered checkpoint 7924 | -7/Garrison | Expanded RIF knowledge: Program Shield 8027 | -7/Garrison | Triggered checkpoint 8077 | -7/Garrison | Expanded RIF knowledge: Threat Obfuscation 8100 | -7/Garrison | Entered Factory 8339 | -7/Factory | X0-1V1 sent hostile Y-54 Guardian (x2) 8446 | -7/Factory | X0-1V1 sent allied H-55 Commando (x2) 8473 | -7/Factory | Build established: Scavenger-Skirmisher 8900 | -7/Factory | First assault squad dispatched 9206 | -7/Factory | Garrison activated, responded to threat 9219 | -7/Factory | X0-1V1 mutated your Utility slot to Power slot 9292 | -7/Factory | Build established: Skirmisher 9520 | -7/Factory | Discovered exit to Factory (range 16) 9523 | -7/Factory | System corruption reached 10% 9610 | -7/Factory | X0-1V1 sent you to a vault 9739 | -7/Factory | Entered another Factory area 9739 | -6/Factory | Evolved 2 slots: Utility x2 9810 | -6/Factory | Garrison activated, responded to threat 10275 | -6/Factory | Discovered new exit (range 5) 10365 | -6/Factory | X0-1V1 sent you to a vault 10491 | -6/Factory | Discovered new exit (range 5) 10656 | -6/Factory | Build established: Commander-Skirmisher 10717 | -6/Factory | X0-1V1 activates XOMVISION 10974 | -6/Factory | Identified exit to Factory 10974 | -6/Factory | X0-1V1 revealed exit location to -5/Factory 11079 | -6/Factory | Build established: Skirmisher 11592 | -6/Factory | X0-1V1 revealed exit location to -5/Factory 11672 | -6/Factory | Identified exit to Lower Caves 11672 | -6/Factory | X0-1V1 revealed exit location to -6/Lower Caves 11766 | -6/Factory | X0-1V1 activates XOMVISION 11882 | -6/Factory | X0-1V1 mutated your Weapon slot to Propulsion slot 11899 | -6/Factory | X0-1V1 revealed exit location to -5/Factory 12315 | -6/Factory | X0-1V1 activates XOMVISION 13070 | -6/Factory | Entered Lower Caves 13076 | -6/Lower Caves | Build established: Tank 13122 | -6/Lower Caves | Identified exit to Lower Caves 13122 | -6/Lower Caves | X0-1V1 revealed exit location to -6/Lower Caves 13440 | -6/Lower Caves | X0-1V1 activates XOMVISION 13702 | -6/Lower Caves | Learned Factory emergency access door positions 13772 | -6/Lower Caves | Entered another Lower Caves area 13797 | -6/Lower Caves | Identified exit to Zion 13797 | -6/Lower Caves | X0-1V1 revealed exit location to -6/Zion 13814 | -6/Lower Caves | Discovered exit to Factory (range 14) 13836 | -6/Lower Caves | Entered Factory 13836 | -5/Factory | Evolved 2 slots: Utility x2 14048 | -5/Factory | Noticed a derelict Sapper rigging charges 14071 | -5/Factory | Discovered new exit (range 8) 14077 | -5/Factory | X0-1V1 sent you to a vault 14096 | -5/Factory | Found Prototype Device 14096 | -5/Factory | Identified Exp. Shield Generator 14190 | -5/Factory | X0-1V1 sent hostile Thug (x2) 14211 | -5/Factory | X0-1V1 enhanced Transport squad support 14249 | -5/Factory | Allied Derelicts emerged from ambush trap array 14304 | -5/Factory | X0-1V1 mutated your Weapon slot to Utility slot 14457 | -5/Factory | Destroyed 8 combat bots 14488 | -5/Factory | Discovered new exit (range 7) 14532 | -5/Factory | Identified exit to Upper Caves 14532 | -5/Factory | Identified exit to Extension 14602 | -5/Factory | Build established: Mutant 14851 | -5/Factory | Identified exit to Factory 14851 | -5/Factory | X0-1V1 revealed exit location to -4/Factory 14969 | -5/Factory | X0-1V1 activates XOMVISION 14997 | -5/Factory | Garrison activated, responded to threat 15044 | -5/Factory | Lost 3 parts (1n2u) 15228 | -5/Factory | Discovered exit to Factory (range 3) 15384 | -5/Factory | Entered Extension 15384 | -5/Extension | Accompanied by 1 ally 15750 | -5/Extension | Identified exit to Cetus 15750 | -5/Extension | X0-1V1 revealed exit location to -5/Cetus 15813 | -5/Extension | Rescued a captive Derelict 15813 | -5/Extension | Rescued a captive Derelict 16041 | -5/Extension | X0-1V1 revealed exit location to -4/Factory 16042 | -5/Extension | Spotted B-75 Beast 16045 | -5/Extension | Assimilated Beast 6a with formatsys_high 16049 | -5/Extension | Spotted B-75 Beast 16057 | -5/Extension | Assimilated Beast 6b with formatsys_high 16336 | -5/Extension | Weapon slot count temporarily expanded by X0-1V1 (+4) 16363 | -5/Extension | Destroyed 7 combat bots 16390 | -5/Extension | X0-1V1 activates XOMVISION 16425 | -5/Extension | X0-1V1 rewrote SE-L62(g) IFF filter 16556 | -5/Extension | X0-1V1 mutated your Propulsion slot to Weapon slot 16568 | -5/Extension | Rescued A7 16598 | -5/Extension | Rescued a captive Derelict 16637 | -5/Extension | Build established: Commander-Executioner 16708 | -5/Extension | Rescued a captive Derelict 16709 | -5/Extension | Rescued a captive Derelict 16942 | -5/Extension | X0-1V1 rewrote YA-4EL(g) IFF filter 16976 | -5/Extension | Entered Cetus 16976 | -5/Cetus | Accompanied by 14 allies (A7) 16979 | -5/Cetus | X0-1V1 activates XOMVISION 16981 | -5/Cetus | Acquired a Cetus Manufacturing Module code from A7 16993 | -5/Cetus | Spotted Cetus Guard 16993 | -5/Cetus | Spotted Cetus Guard 16994 | -5/Cetus | Allies destroyed Cetus Guard 16996 | -5/Cetus | Spotted Cetus Guard 17001 | -5/Cetus | Destroyed Cetus Guard 17005 | -5/Cetus | Allies destroyed Cetus Guard 17034 | -5/Cetus | X0-1V1 revealed exit location to -4/Factory 17076 | -5/Cetus | Build established: Commander-Tank 17107 | -5/Cetus | Escorted A7 to Cetus Mainframe 17122 | -5/Cetus | Started Cetus Manufacturing Module 17147 | -5/Cetus | Manufactured an Enhanced Grunt 17154 | -5/Cetus | Discovered new exit (range 19) 17172 | -5/Cetus | Manufactured an Enhanced Grunt 17185 | -5/Cetus | Spotted Cetus Guard 17185 | -5/Cetus | Spotted Cetus Guard 17185 | -5/Cetus | Spotted Cetus Guard 17188 | -5/Cetus | Spotted Cetus Guard 17189 | -5/Cetus | Allies destroyed Cetus Guard 17196 | -5/Cetus | Allies destroyed Cetus Guard 17197 | -5/Cetus | Manufactured an Enhanced Grunt 17198 | -5/Cetus | Allies destroyed Cetus Guard 17200 | -5/Cetus | Destroyed Cetus Guard 17201 | -5/Cetus | X0-1V1 revealed exit location to -4/Factory 17216 | -5/Cetus | Met Revision 17 17222 | -5/Cetus | Manufactured an Enhanced Grunt 17247 | -5/Cetus | Manufactured an Enhanced Grunt 17371 | -5/Cetus | Entered Archives 17371 | -5/Archives | Accompanied by 17 allies (A7) 17376 | -5/Archives | Received a hacking code to weaken MAIN.C 17404 | -5/Archives | Core integrity restored by X0-1V1 (+182) 17442 | -5/Archives | Discovered new exit (range 16) 17496 | -5/Archives | Entered Hub_04(d) 17496 | -5/Hub_04(d) | Accompanied by 14 allies 17559 | -5/Hub_04(d) | Discovered exit to Factory (range 13) 17614 | -5/Hub_04(d) | X0-1V1 sent you to a vault 17663 | -5/Hub_04(d) | Discovered exit to Factory (range 5) 17703 | -5/Hub_04(d) | Garrison activated, responded to threat 17926 | -5/Hub_04(d) | X0-1V1 downgraded hostiles (x1) 17960 | -5/Hub_04(d) | Lost 3 allies 18119 | -5/Hub_04(d) | Network Hub disabled 18339 | -5/Hub_04(d) | Network Hub disabled 18339 | -5/Hub_04(d) | Spotted Lightning 18346 | -5/Hub_04(d) | Spotted Lightning 18356 | -5/Hub_04(d) | Allies destroyed Lightning 18358 | -5/Hub_04(d) | Spotted Lightning 18362 | -5/Hub_04(d) | High security lockdown imminent 18362 | -5/Hub_04(d) | Destroyed Lightning 18376 | -5/Hub_04(d) | Destroyed Lightning 18399 | -5/Hub_04(d) | Found Prototype Device 18399 | -5/Hub_04(d) | Identified Exp. EM Shield 18405 | -5/Hub_04(d) | Lost 4 allies 18406 | -5/Hub_04(d) | Found Prototype Device 18406 | -5/Hub_04(d) | Identified Exp. Phase Shifter 18442 | -5/Hub_04(d) | High security lockdown engaged 18473 | -5/Hub_04(d) | System corruption reached 10% 18494 | -5/Hub_04(d) | Entered Factory 18494 | -4/Factory | Accompanied by 8 allies 18494 | -4/Factory | Evolved 2 slots: Propulsion x1, Utility x1 18743 | -4/Factory | Repaired Enh. Force Rifle 18875 | -4/Factory | Repaired Exp. Heat Sink 18994 | -4/Factory | First assault squad dispatched 19169 | -4/Factory | Build established: Scavenger-Skirmisher 19223 | -4/Factory | High security lockdown imminent 19302 | -4/Factory | Garrison activated, responded to threat 19303 | -4/Factory | High security lockdown engaged 19348 | -4/Factory | X0-1V1 activates XOMVISION 19350 | -4/Factory | Identified exit to Upper Caves 19350 | -4/Factory | X0-1V1 revealed exit location to -4/Upper Caves 19405 | -4/Factory | Discovered exit to Upper Caves (range 21) 19439 | -4/Factory | Crushed by falling debris 19447 | -4/Factory | Entered Upper Caves 19447 | -4/Upper Caves | Accompanied by 2 allies 19472 | -4/Upper Caves | X0-1V1 mutated your Weapon slot to Propulsion slot 19692 | -4/Upper Caves | Attracted the attention of an 0b10 checkpoint 19722 | -4/Upper Caves | Identified exit to Upper Caves 19722 | -4/Upper Caves | X0-1V1 revealed exit location to -4/Upper Caves 19772 | -4/Upper Caves | Build established: Scavenger-Mutant 19986 | -4/Upper Caves | Entered another Upper Caves area 19986 | -4/Upper Caves | Accompanied by 1 ally 20106 | -4/Upper Caves | Entered an active Warlord outpost 20109 | -4/Upper Caves | A Commander dispatched an escort 20122 | -4/Upper Caves | Identified exit to Warlord 20122 | -4/Upper Caves | X0-1V1 revealed exit location to -4/Warlord 20139 | -4/Upper Caves | Destroyed KE-OAZ(g) 20171 | -4/Upper Caves | Learned location of 1 exit from Research 20191 | -4/Upper Caves | Learned Armory security intel 20191 | -4/Upper Caves | Learned Factory terminal intel 20191 | -4/Upper Caves | Learned Armory terminal intel 20353 | -4/Upper Caves | Attracted the attention of an 0b10 checkpoint 20357 | -4/Upper Caves | X0-1V1 activates XOMVISION 20440 | -4/Upper Caves | Identified exit to Research 20440 | -4/Upper Caves | X0-1V1 revealed exit location to -3/Research 20509 | -4/Upper Caves | Entered Warlord 20509 | -4/Warlord | Accompanied by 3 allies 20510 | -4/Warlord | Commander's escort returned to base 20541 | -4/Warlord | Discovered new exit (range 8) 20603 | -4/Warlord | Entered Proximity Caves 20603 | -3/Proximity Caves | Accompanied by 2 allies 20605 | -3/Proximity Caves | Spotter reported a threat 20606 | -3/Proximity Caves | Spotter reported a threat 20881 | -3/Proximity Caves | Discovered exit to Research (range 16) 20948 | -3/Proximity Caves | Entered Research 20948 | -3/Research | Accompanied by 1 ally 20948 | -3/Research | Evolved 2 slots: Utility x1, Weapon x1 20949 | -3/Research | Identified exit to Testing 20984 | -3/Research | Discovered new exit (range 16) 21062 | -3/Research | X0-1V1 added 0b10 threat records associated with you (minor) 21081 | -3/Research | X0-1V1 sent you into danger 21148 | -3/Research | Revision forces began assault on 0b10 21243 | -3/Research | Met up with Revision 17++ 21410 | -3/Research | X0-1V1 vaporized surrounding terrain (radius 16) 21412 | -3/Research | X0-1V1 activates XOMVISION 21575 | -3/Research | Build established: Scavenger-Tank 21648 | -3/Research | Research terminal network offline 21735 | -3/Research | Discovered new exit (range 13) 21743 | -3/Research | Found Prototype Processor 21743 | -3/Research | Identified Exp. Signal Interpreter 21827 | -3/Research | X0-1V1 activates XOMVISION 21835 | -3/Research | X0-1V1 enhanced Transport squad support 21840 | -3/Research | Identified exit to Research 21840 | -3/Research | X0-1V1 revealed exit location to -2/Research 21949 | -3/Research | Spotted Striker 22056 | -3/Research | X0-1V1 activates XOMVISION 22194 | -3/Research | Spotted Executioner 22201 | -3/Research | Spotted Striker 22202 | -3/Research | Destroyed Striker 22214 | -3/Research | Destroyed Executioner 22241 | -3/Research | Found Prototype Device 22241 | -3/Research | Identified Adv. Kinecellerator 22247 | -3/Research | Found Prototype Processor 22247 | -3/Research | Identified Exp. Core Analyzer 22332 | -3/Research | Entered Armory 22332 | -3/Armory | Accompanied by 1 ally 22334 | -3/Armory | Loaded intel: 15 terminal locations 22382 | -3/Armory | X0-1V1 sent you into danger 22513 | -3/Armory | X0-1V1 activates XOMVISION 22553 | -3/Armory | Repaired Enh. Biometal Leg 22595 | -3/Armory | Found Prototype Launcher 22595 | -3/Armory | Identified Tactical Quantum Warhead 22736 | -3/Armory | X0-1V1 revealed exit location to -2/Research 23215 | -3/Armory | Energy Cycler disabled 23348 | -3/Armory | Build established: Skirmisher 23602 | -3/Armory | Fabricated Enh. Hardcell Cannon? 23667 | -3/Armory | X0-1V1 activates XOMVISION 23680 | -3/Armory | X0-1V1 upgraded hostiles (x2) 23733 | -3/Armory | X0-1V1 downgraded hostiles (x6) 23752 | -3/Armory | Entered Research 23752 | -2/Research | Evolved 2 slots: Utility x1, Weapon x1 23761 | -2/Research | Lost 5 parts (3u2w) 24177 | -2/Research | Identified exit to Garrison 24177 | -2/Research | Entered Garrison 24197 | -2/Garrison | Expanded RIF knowledge: Hotswap 24228 | -2/Garrison | Garrison Relay disabled 24241 | -2/Garrison | Triggered checkpoint 24383 | -2/Garrison | Triggered checkpoint 24420 | -2/Garrison | System corruption reached 10% 24523 | -2/Garrison | X0-1V1 whisked you away to safety 24525 | -2/Garrison | Triggered checkpoint 24526 | -2/Garrison | Garrison Relay disabled 24643 | -2/Garrison | Discovered new exit (range 13) 24667 | -2/Garrison | Build established: Scavenger-Tank 24815 | -2/Garrison | QS Assembler disabled 24851 | -2/Garrison | Found Prototype Launcher 24851 | -2/Garrison | Identified Adv. Micro-nuke Launcher 24862 | -2/Garrison | Found Prototype Device 24862 | -2/Garrison | Identified Exp. Thermal Defense Suite 25010 | -2/Garrison | Discovered new exit (range 30) 25010 | -2/Garrison | Discovered new exit (range 63) 25010 | -2/Garrison | Discovered new exit (range 26) 25061 | -2/Garrison | Found embedded Infiltrators 25169 | -2/Garrison | Lost 6 allies 25220 | -2/Garrison | Garrison Relay disabled 25478 | -2/Garrison | Build established: Bothacker-Tank 25570 | -2/Garrison | Spotted B-75 Beast 25570 | -2/Garrison | Spotted B-75 Beast 25575 | -2/Garrison | Assimilated Beast 9a with formatsys_high 25582 | -2/Garrison | Assimilated Beast 9b with formatsys_high 25601 | -2/Garrison | Rewired B-90 Cyclops 25678 | -2/Garrison | Entered Research 25678 | -2/Research | Accompanied by 3 allies 25800 | -2/Research | Spotted B-90 Cyclops 25802 | -2/Research | Assimilated Cyclops 9b with formatsys_high 25928 | -2/Research | First assault squad dispatched 26101 | -2/Research | Found Unknown Device 26101 | -2/Research | Identified Quantum Capacitor 26243 | -2/Research | X0-1V1 redirected Transport squads to designated parking area 26348 | -2/Research | Discovered new exit (range 9) 26409 | -2/Research | Destroyed Cyclops 9a 26431 | -2/Research | High security lockdown imminent 26471 | -2/Research | Lost 3 allies 26495 | -2/Research | Entered Access 26495 | -1/Access | Accompanied by 1 ally 26495 | -1/Access | Evolved 2 slots: Utility x2 26570 | -1/Access | Identified exit to Surface 26570 | -1/Access | X0-1V1 revealed exit location to -0/Surface 26622 | -1/Access | X0-1V1 activates XOMVISION 26667 | -1/Access | Identified exit to Garrison 26677 | -1/Access | Entered Garrison 26713 | -1/Garrison | Triggered checkpoint 26775 | -1/Garrison | Learned Access security intel 26784 | -1/Garrison | Garrison Relay disabled 26829 | -1/Garrison | Spotted B-99 Colossus 26855 | -1/Garrison | Identified exit to Access 26855 | -1/Garrison | X0-1V1 revealed exit location to -1/Access 26858 | -1/Garrison | Assimilated Colossus 10a with formatsys_high 26877 | -1/Garrison | Triggered checkpoint 26893 | -1/Garrison | Triggered checkpoint 26940 | -1/Garrison | Spotted B-99 Colossus 26989 | -1/Garrison | Assimilated Colossus 10b with formatsys_high 27029 | -1/Garrison | Phase Generator disabled 27035 | -1/Garrison | Expanded RIF knowledge: Threat Obfuscation 27070 | -1/Garrison | Triggered checkpoint 27081 | -1/Garrison | Garrison Relay disabled 27096 | -1/Garrison | Garrison Relay disabled 27097 | -1/Garrison | X0-1V1 revealed exit location to -1/Access 27171 | -1/Garrison | Found Unknown Device 27171 | -1/Garrison | Identified Adv. Force Booster 27232 | -1/Garrison | Spotted B-99 Colossus 27233 | -1/Garrison | Spotted B-99 Colossus 27235 | -1/Garrison | Assimilated Colossus 10c with formatsys_high 27236 | -1/Garrison | Assimilated Colossus 10d with formatsys_high 27262 | -1/Garrison | Triggered checkpoint 27278 | -1/Garrison | X0-1V1 revealed exit location to -1/Access 27302 | -1/Garrison | Triggered checkpoint 27426 | -1/Garrison | Triggered checkpoint 27443 | -1/Garrison | Q-Series assembled to engage unique threat in Access 27456 | -1/Garrison | Build established: Botlord-Tank 27462 | -1/Garrison | Destroyed 11 combat bots 27494 | -1/Garrison | Garrison Relay disabled 27519 | -1/Garrison | Garrison Relay disabled 27616 | -1/Garrison | X0-1V1 rewrote Warden 10a IFF filter 27629 | -1/Garrison | Found Prototype Ballistic Gun 27656 | -1/Garrison | Found Corrupted Prototype Ballistic Gun 27656 | -1/Garrison | Identified Multirail (x2) 27657 | -1/Garrison | System corruption reached 10% 27788 | -1/Garrison | X0-1V1 mutated your Propulsion slot to Weapon slot 27903 | -1/Garrison | Found Prototype Processor 27903 | -1/Garrison | Identified Exp. Target Analyzer 27931 | -1/Garrison | Found Prototype Processor 27931 | -1/Garrison | Identified Exp. Targeting Computer 27989 | -1/Garrison | Triggered checkpoint 28103 | -1/Garrison | X0-1V1 activates XOMVISION 28206 | -1/Garrison | Build established: Botlord-Gunner 28980 | -1/Garrison | X0-1V1 activates XOMVISION 29048 | -1/Garrison | Q-Series assembled to engage unique threat in Access 29114 | -1/Garrison | QS Assembler disabled 29344 | -1/Garrison | Entered Access 29344 | -1/Access | Accompanied by 4 allies 29359 | -1/Access | X0-1V1 activates XOMVISION 29408 | -1/Access | Garrison activated, responded to threat 29450 | -1/Access | X0-1V1 destroyed Energy Cycler 29450 | -1/Access | Energy Cycler disabled 29594 | -1/Access | First assault squad dispatched 29607 | -1/Access | X0-1V1 sent you to a vault 29629 | -1/Access | High security lockdown imminent 29709 | -1/Access | High security lockdown engaged 29716 | -1/Access | Garrison activated, responded to threat 29785 | -1/Access | Lost 3 allies 29790 | -1/Access | Spotted Striker 29803 | -1/Access | Destroyed Striker 29897 | -1/Access | Discovered exit to Surface (range 5) 30011 | -1/Access | Spotted Striker 30015 | -1/Access | Allies destroyed Striker 30061 | -1/Access | Lost 3 allies 30078 | -1/Access | Spotted Investigator 30084 | -1/Access | X0-1V1 downgraded hostiles (x7) 30084 | -1/Access | Scanned by Researcher 30113 | -1/Access | X0-1V1 sent allied G-67 Veteran (x2) 30137 | -1/Access | X0-1V1 whisked you away to safety 30162 | -1/Access | Lost 9 parts (1p1n4u3w) 30177 | -1/Access | Found Prototype Device 30177 | -1/Access | Identified Exp. Focal Shield 30264 | -1/Access | Core integrity fell below 50% 30295 | -1/Access | Build established: Mutant 30305 | -1/Access | Identified exit to Command 30305 | -1/Access | X0-1V1 revealed exit location to -1/Command 30318 | -1/Access | Spotted Executioner 30320 | -1/Access | Core integrity fell below 20% 30342 | -1/Access | X0-1V1 rescued you from certain death 30401 | -1/Access | X0-1V1 whisked you away to safety 30518 | -1/Access | Spotted Executioner 30552 | -1/Access | Spotted Executioner 30552 | -1/Access | Spotted Executioner 30570 | -1/Access | Core integrity restored by X0-1V1 (+250) 30621 | -1/Access | Spotted B-99 Colossus 30621 | -1/Access | Spotted B-99 Colossus 30676 | *** | Escaped! Last Messages --------------- 30664_ Penetrated by Slug. 30664_ Slug penetrates E-15 Imp. 30664_ Slug penetrates Reinforced Barrier. 30665_ Acquired 11 matter. 30666_ B-99 Colossus activates siege mode. 30666_ Sealed Heavy Doors breached. 30667_ Penetrated by Slug. 30670_ Enh. Nova Cannon blown off. 30670_ E-15 Imp destroyed. 30671_ Penetrated by Slug. 30671_ Slug penetrates Reinforced Barrier. 30671_ Penetrated by Slug. 30672_ Acquired 7 matter. 30672_ Acquired 10 matter. 30673_ Slug penetrates Sealed Heavy Doors. 30674_ B-99 Colossus activates siege mode. 30674_ Slug penetrates Reinforced Barrier. 30674_ Slug penetrates Sealed Heavy Doors. 30674_ Penetrated by Slug. [Achievement: One Last FU] Map ----- +----------------------------------------------------+ | ??# / ???????????????????? | | ??# ###### ???????????????????? | | ??# #????????!???? ???????????????????? | | ??# #?????????????????????????????????????????? | | ??+ #?????????????????????????????????????????? | | ??# #?????????????????????????????????????????? | | ??# #?????????????????????????????????????????? | | ??# #??????????????????????????????? ?????????? | | ??#* #?????????????????????????????? ?????????? | | ###%= #?????????????????????????????? #????????? | | # #?????????????????????????????? #????????? | | / #?????????????????????????????? #????????? | | # #?????????????????????????????? #????????? | | # ^ #?????????????????????????????? #????????? | | # #?????????????????????????????? #????????? | | # #?????????????????????????????? +????????? | | # #?????????????????????????????? #????????? | | # #?????????????????????????????# #????????? | | # #?????????????????????????????# #????????? | | # #?????????????????????###?????# #????????? | | # #?##################### ####### #????????? | | # #?# /%] #????????? | | # ### BB """" #????????? | | ### #"" BB "??" #????????? | | lg "??" #????????? | | "??" "@ #????????? | | "??" "" #????????? | | "??" #????????? | | ########## BB "??" m #????????? | | # # BB "??" """ """ #????????? | | # # "??" """T""" #????????? | | + #########??########## ####### #?######## | | # #???????????????????###?????# #?# """"" | | + " #???????????????????????????#| #?# ""S"" | | # """ #???????????????????????????#%!#?# "" | | # """ #???????????????????????????#=*#?# | | # " ##########??????????????????# #?? | | # # #################### #???? | | # # # #?????? | | # " # # ##??????? | | # """ # " # ######### | | # """ # """ + | | # " # """ # | | # # " [# ######### | | # + #########+##########+###???????? | | # # [#??????#*%= #???? ????##### | | # ##########??????#[=[ #?? ??# | | ##+#######???????????????# ## = !# | | ?#%#?????????????????????# ## # | | ?# #?????????????????????# ## " | +----------------------------------------------------+ Best States ------------- Heat Dissipation 188 Energy Generation 84 Energy Capacity 1950 Matter Stores 1000 Matter Capacity 1000 Sight Range 26 Terrain Scan Range 20 Terrain Scan Density 210 Jamming Range 16 Additional Mass Support 20 Base Temperature (-) 150 Armor Coverage 600 Resistance: KI 30 Resistance: EM 75 Propulsion Shielding 33 Utility Shielding 66 Weapon Cycling 20 Melee Speed Boost 20 Phase Shifting 20 Evasion (%) 84 Targeting Accuracy 12 Core Analysis 8 Recoil Reduction 5 Energy Filtering 30 Particle Charging 20 Offensive Hacking 12 Relay Coupler Types 4 Relay Coupler Value 297 Trap Extractor Capacity 6 Item Schematics ----------------- None Robot Schematics ------------------ None Fabricated ------------ Enh. Hardcell Cannon | x2 | -3/Armory | Preloaded Repaired ---------- Beam Cannon | 72% | -10/Materials Enh. Force Rifle | 33% | -4/Factory Exp. Heat Sink | 52% | -4/Factory Enh. Biometal Leg | 35% | -3/Armory Studied --------- Lgt. Nuclear Core | -8/Materials | Hacked Arm. Huge Wheel | -7/Factory | Hacked Com. Wheel | -7/Factory | Hacked Remote Datajack | -7/Factory | Hacked Hyp. Railgun | -3/Research | Hacked Centrium Leg | -2/Research | Hacked Alien Tech Used ----------------- None Achievements -------------- Assimilation Complete Hackerman One Last FU Versatile You Will Be Upgraded Challenges ------------ None Game ------ Seed ArchitectWeldingInterrupter Manual? 0 Play Time 06:20:10 Cumulative 488.0 hours Start 2026.06.30 @ 19:00:19 End 2026.07.01 @ 01:46:19 Sessions 1 Manual Loads 0 Difficulty Rogue Special Mode None Game No. 215 Rogue 215 Adventurer 0 Explorer 0 Win Type 0 Total 26 Types 12/2/4/2/1/1/1/1/1/1 Lore% 89 Gallery% 80 Achievement% 74 Wizard Run 0 Options --------- Layout 2 ASCII 0 Keyboard 1 Movement Arrows Keybinds 0 Fullscreen 2 Font 24/Terminus Map View 50x44 Zoom Use 0% Tactical HUD 1 Map Filters BRIGHTNESS(90)|SATURATION(90) Filters NONE Steam 1 RUN: f5f0d323-5725-4b30-9f76-5c05c6d7c29d